Workbook

Sheet Lehm ja ratsiooni tingimused
B2: Piimaklaster MTÜ, Söötmiskulude optimeerimise mudel 2.0
C5: Piimalehm
C7: Kehamass, kg | D7: 650
C8: Piimatoodang, kg/päev | D8: 20
C9: Laktatsiooniperioodi etapp/kinnisperiood | D9: 0…30 lüpsipäev
C10: Sööda kuivaine tarbimine, kg/päev | D10: =Tehniline!D10 -> 13.55980379
C11: Söömus, % kehamassist | D11: =D10/D7 -> 0.0208612366
C15: Söödaratsiooni tingimused
C17: Silo
C18: Maksimaalne rohu- ja maisisilo kogus päevas, kg | D18: 50
C19: Minimaalne maisisilo osatähtsus kogu silokogusest, % | D19: 0
C20: Maksimaalne maisisilo osatähtsus kogu silokogusest, % | D20: 1
C21: Kui ratsioonis on korraga kaks või rohkem rohusilo, siis neist igaühe minimaalne osakaal, % | D21: 0
C23: Hein ja põhk
C24: Maksimaalne heina kogus päevas, kg | D24: 1
C25: Maksimaalne põhu kogus päevas, kg | D25: 0.5
C27: Rapsikook ja -šrott
C28: Maksimaalne rapsikoogi ja -šroti kogus päevas, kg | D28: 5
C30: Teravili ja jahu
C31: Maksimaalne teravilja, jahu ja õlikoogi kogus päevas, kg | D31: 15
C32: Maksimaalne nisu osatähtsus teravilja ja jahude kogusest, % | D32: 0.5
C33: Kui ratsioonis on korraga kaks või rohkem teravilja, siis neist igaühe minimaalne osakaal, % | D33: 0
C35: Kaitstud rasv
C36: Maksimaalne kaitstud rasva kogus päevas, kg | D36: 0.2
C38: Mineraalid
C39: Maksimaalne mineraalainete kogus päevas, kg | D39: 0.2
C40: Maksimaalne lubjakivi kogus päevas, kg | D40: 0.25
C42: Lisasööt
C43: Lisasööt 1, minmaalne kogus päevas, kg | D43: 2
C44: Lisasööt 2, minimaalne kogus päevas, kg | D44: 0

Sheet Söödad
A1: valik | C1: Söödad | D1: Hind, €/kg | E1: KA,% | F1: ME, MJ/kg KA | G1: Toorkiud, g/kg KA | H1: MP, g/kg KA | I1: VPB, g/kg KA | J1: VPB, g, max | K1: Ca, g/kg KA | L1: Ca, g, max | M1: P, g/kg KA | N1: (Toor) proteiin, g/kg KA | O1: Vaba - reserveering | P1: Tärklis+suhkur, g/kg KA | Q1: ADF, g/kg KA | R1: NDF, g/kg KA | S1: silo | T1: silo max% | U1: hein | V1: põhk | W1: jahud | X1: jahud% | Y1: nisu max | Z1: õlikoogid | AA1: panto | AB1: mineraal | AC1: lubjakivi | AD1: maisisilo min | AE1: Kaitstud rasv max | AF1: Lisasööt1 | AG1: Lisasööt2 | AH1: rohusilo max % | AI1: rohusilo max % | AJ1: rohusilo max % | AK1: rohusilo max % | AL1: rohusilo max % | AM1: rohusilo max % | AN1: rohusilo max % | AO1: rohusilo max % | AP1: rohusilo max % | AQ1: rohusilo max % | AR1: rohusilo max % | AS1: rohusilo max % | AT1: rohusilo max % | AU1: Vesi | AV1: teravilja max% | AW1: teravilja max% | AX1: teravilja max% | AY1: teravilja max% | AZ1: teravilja max% | BA1: teravilja max% | BB1: teravilja max% | BC1: teravilja max% | BD1: teravilja max% | BE1: teravilja max% | BF1: teravilja max% | BG1: teravilja max% | BH1: teravilja max% | BI1: teravilja max% | BJ1: teravilja max% | BK1: teravilja max% | BL1: teravilja max% | BM1: nisu max% | BN1: nisu max% | BO1: nisu max% | BP1: nisu max% | BQ1: nisu max% | BR1: nisu max% | BS1: nisu max% | BT1: nisu max%
B2: Silo | C2: Kõrreliste silo hea heintaimikuga kultuurrohumaalt LL 030-12-40 | D2: 0.03 | E2: 0.35 | F2: 10.1 | G2: 280 | H2: 79 | I2: -6 | J2: =I2 -> -6 | K2: 6 | L2: =K2 -> 6 | M2: 3 | N2: 128 | P2: 30 | Q2: 370 | R2: 560 | S2: 1 | T2: =-'Lehm ja ratsiooni tingimused'!$D$20 -> -1 | AD2: =0-'Lehm ja ratsiooni tingimused'!$D$19 -> 0 | AH2: =1-'Lehm ja ratsiooni tingimused'!$D$21 -> 1 | AI2: =IF(AND(Tehniline!$A$32,Tehniline!$A$33),-'Lehm ja ratsiooni tingimused'!$D$21,0) -> 0 | AJ2: =IF(AND(Tehniline!$A$32,Tehniline!$A$34),-'Lehm ja ratsiooni tingimused'!$D$21,0) -> 0 | AK2: =IF(AND(Tehniline!$A$32,Tehniline!$A$35),-'Lehm ja ratsiooni tingimused'!$D$21,0) -> 0 | AL2: =IF(AND(Tehniline!$A$32,Tehniline!$A$36),-'Lehm ja ratsiooni tingimused'!$D$21,0) -> 0 | AM2: =IF(AND(Tehniline!$A$32,Tehniline!$A$37),-'Lehm ja ratsiooni tingimused'!$D$21,0) -> 0 | AN2: =IF(AND(Tehniline!$A$32,Tehniline!$A$38),-'Lehm ja ratsiooni tingimused'!$D$21,0) -> 0 | AO2: =IF(AND(Tehniline!$A$32,Tehniline!$A$39),-'Lehm ja ratsiooni tingimused'!$D$21,0) -> 0 | AP2: =IF(AND(Tehniline!$A$32,Tehniline!$A$40),-'Lehm ja ratsiooni tingimused'!$D$21,0) -> 0 | AQ2: =IF(AND(Tehniline!$A$32,Tehniline!$A$41),-'Lehm ja ratsiooni tingimused'!$D$21,0) -> 0 | AR2: =IF(AND(Tehniline!$A$32,Tehniline!$A$42),-'Lehm ja ratsiooni tingimused'!$D$21,0) -> 0 | AS2: =IF(AND(Tehniline!$A$32,Tehniline!$A$43),-'Lehm ja ratsiooni tingimused'!$D$21,0) -> 0 | AT2: =IF(AND(Tehniline!$A$32,Tehniline!$A$44),-'Lehm ja ratsiooni tingimused'!$D$21,0) -> 0
B3: Silo | C3: Põldheinasilo (75% ristikut) LL 101-12-40 | D3: 0.03 | E3: 0.35 | F3: 9.7 | G3: 275 | H3: 79 | I3: 7 | J3: =I3 -> 7 | K3: 12.2 | L3: =K3 -> 12.2 | M3: 2.6 | N3: 142 | P3: 30 | Q3: 343 | R3: 467 | S3: 1 | T3: =-'Lehm ja ratsiooni tingimused'!$D$20 -> -1 | AD3: =0-'Lehm ja ratsiooni tingimused'!$D$19 -> 0 | AH3: =IF(AND(Tehniline!$A$32,Tehniline!$A$33),-'Lehm ja ratsiooni tingimused'!$D$21,0) -> 0 | AI3: =1-'Lehm ja ratsiooni tingimused'!$D$21 -> 1 | AJ3: =IF(AND(Tehniline!$A$34,Tehniline!$A$33),-'Lehm ja ratsiooni tingimused'!$D$21,0) -> 0 | AK3: =IF(AND(Tehniline!$A$35,Tehniline!$A$33),-'Lehm ja ratsiooni tingimused'!$D$21,0) -> 0 | AL3: =IF(AND(Tehniline!$A$36,Tehniline!$A$33),-'Lehm ja ratsiooni tingimused'!$D$21,0) -> 0 | AM3: =IF(AND(Tehniline!$A$37,Tehniline!$A$33),-'Lehm ja ratsiooni tingimused'!$D$21,0) -> 0 | AN3: =IF(AND(Tehniline!$A$38,Tehniline!$A$33),-'Lehm ja ratsiooni tingimused'!$D$21,0) -> 0 | AO3: =IF(AND(Tehniline!$A$39,Tehniline!$A$33),-'Lehm ja ratsiooni tingimused'!$D$21,0) -> 0 | AP3: =IF(AND(Tehniline!$A$40,Tehniline!$A$33),-'Lehm ja ratsiooni tingimused'!$D$21,0) -> 0 | AQ3: =IF(AND(Tehniline!$A$41,Tehniline!$A$33),-'Lehm ja ratsiooni tingimused'!$D$21,0) -> 0 | AR3: =IF(AND(Tehniline!$A$42,Tehniline!$A$33),-'Lehm ja ratsiooni tingimused'!$D$21,0) -> 0 | AS3: =IF(AND(Tehniline!$A$43,Tehniline!$A$33),-'Lehm ja ratsiooni tingimused'!$D$21,0) -> 0 | AT3: =IF(AND(Tehniline!$A$44,Tehniline!$A$33),-'Lehm ja ratsiooni tingimused'!$D$21,0) -> 0
B4: Silo | C4: Põldheinasilo (50% ristikut) LL 103-12-40 | D4: 0.03 | E4: 0.35 | F4: 9.8 | G4: 280 | H4: 79 | I4: 0 | J4: 0 | K4: 9.9 | L4: 9.9 | M4: 2.6 | N4: 135 | P4: 30 | Q4: 354 | R4: 502 | S4: 1 | T4: =-'Lehm ja ratsiooni tingimused'!$D$20 -> -1 | AD4: =0-'Lehm ja ratsiooni tingimused'!$D$19 -> 0 | AH4: =IF(AND(Tehniline!$A$32,Tehniline!$A$34),-'Lehm ja ratsiooni tingimused'!$D$21,0) -> 0 | AI4: =IF(AND(Tehniline!$A$33,Tehniline!$A$34),-'Lehm ja ratsiooni tingimused'!$D$21,0) -> 0 | AJ4: =1-'Lehm ja ratsiooni tingimused'!$D$21 -> 1 | AK4: =IF(AND(Tehniline!$A$35,Tehniline!$A$34),-'Lehm ja ratsiooni tingimused'!$D$21,0) -> 0 | AL4: =IF(AND(Tehniline!$A$36,Tehniline!$A$34),-'Lehm ja ratsiooni tingimused'!$D$21,0) -> 0 | AM4: =IF(AND(Tehniline!$A$37,Tehniline!$A$34),-'Lehm ja ratsiooni tingimused'!$D$21,0) -> 0 | AN4: =IF(AND(Tehniline!$A$38,Tehniline!$A$34),-'Lehm ja ratsiooni tingimused'!$D$21,0) -> 0 | AO4: =IF(AND(Tehniline!$A$39,Tehniline!$A$34),-'Lehm ja ratsiooni tingimused'!$D$21,0) -> 0 | AP4: =IF(AND(Tehniline!$A$40,Tehniline!$A$34),-'Lehm ja ratsiooni tingimused'!$D$21,0) -> 0 | AQ4: =IF(AND(Tehniline!$A$41,Tehniline!$A$34),-'Lehm ja ratsiooni tingimused'!$D$21,0) -> 0 | AR4: =IF(AND(Tehniline!$A$42,Tehniline!$A$34),-'Lehm ja ratsiooni tingimused'!$D$21,0) -> 0 | AS4: =IF(AND(Tehniline!$A$43,Tehniline!$A$34),-'Lehm ja ratsiooni tingimused'!$D$21,0) -> 0 | AT4: =IF(AND(Tehniline!$A$44,Tehniline!$A$34),-'Lehm ja ratsiooni tingimused'!$D$21,0) -> 0
B5: Silo | C5: Põldheinasilo (25% ristikut) LL 106-12-40 | D5: 0.03 | E5: 0.35 | F5: 9.9 | G5: 284 | H5: 76 | I5: -5 | J5: -5 | K5: 7.5 | L5: 7.5 | M5: 2.7 | N5: 125 | P5: 30 | Q5: 364 | R5: 536 | S5: 1 | T5: =-'Lehm ja ratsiooni tingimused'!$D$20 -> -1 | AD5: =0-'Lehm ja ratsiooni tingimused'!$D$19 -> 0 | AH5: =IF(AND(Tehniline!$A$32,Tehniline!$A$35),-'Lehm ja ratsiooni tingimused'!$D$21,0) -> 0 | AI5: =IF(AND(Tehniline!$A$33,Tehniline!$A$35),-'Lehm ja ratsiooni tingimused'!$D$21,0) -> 0 | AJ5: =IF(AND(Tehniline!$A$34,Tehniline!$A$35),-'Lehm ja ratsiooni tingimused'!$D$21,0) -> 0 | AK5: =1-'Lehm ja ratsiooni tingimused'!$D$21 -> 1 | AL5: =IF(AND(Tehniline!$A$36,Tehniline!$A$35),-'Lehm ja ratsiooni tingimused'!$D$21,0) -> 0 | AM5: =IF(AND(Tehniline!$A$37,Tehniline!$A$35),-'Lehm ja ratsiooni tingimused'!$D$21,0) -> 0 | AN5: =IF(AND(Tehniline!$A$38,Tehniline!$A$35),-'Lehm ja ratsiooni tingimused'!$D$21,0) -> 0 | AO5: =IF(AND(Tehniline!$A$39,Tehniline!$A$35),-'Lehm ja ratsiooni tingimused'!$D$21,0) -> 0 | AP5: =IF(AND(Tehniline!$A$40,Tehniline!$A$35),-'Lehm ja ratsiooni tingimused'!$D$21,0) -> 0 | AQ5: =IF(AND(Tehniline!$A$41,Tehniline!$A$35),-'Lehm ja ratsiooni tingimused'!$D$21,0) -> 0 | AR5: =IF(AND(Tehniline!$A$42,Tehniline!$A$35),-'Lehm ja ratsiooni tingimused'!$D$21,0) -> 0 | AS5: =IF(AND(Tehniline!$A$43,Tehniline!$A$35),-'Lehm ja ratsiooni tingimused'!$D$21,0) -> 0 | AT5: =IF(AND(Tehniline!$A$44,Tehniline!$A$35),-'Lehm ja ratsiooni tingimused'!$D$21,0) -> 0
B6: Silo | C6: Lutsernisilo TÕ 120-12-60 | D6: 0.03 | E6: 0.35 | F6: 8.4 | G6: 332 | H6: 68 | I6: 30 | J6: 30 | K6: 15.5 | L6: 15.5 | M6: 2.6 | N6: 147 | P6: 30 | Q6: 382 | R6: 475 | S6: 1 | T6: =-'Lehm ja ratsiooni tingimused'!$D$20 -> -1 | AD6: =0-'Lehm ja ratsiooni tingimused'!$D$19 -> 0 | AH6: =IF(AND(Tehniline!$A$32,Tehniline!$A$36),-'Lehm ja ratsiooni tingimused'!$D$21,0) -> 0 | AI6: =IF(AND(Tehniline!$A$33,Tehniline!$A$36),-'Lehm ja ratsiooni tingimused'!$D$21,0) -> 0 | AJ6: =IF(AND(Tehniline!$A$34,Tehniline!$A$36),-'Lehm ja ratsiooni tingimused'!$D$21,0) -> 0 | AK6: =IF(AND(Tehniline!$A$35,Tehniline!$A$36),-'Lehm ja ratsiooni tingimused'!$D$21,0) -> 0 | AL6: =1-'Lehm ja ratsiooni tingimused'!$D$21 -> 1 | AM6: =IF(AND(Tehniline!$A$37,Tehniline!$A$36),-'Lehm ja ratsiooni tingimused'!$D$21,0) -> 0 | AN6: =IF(AND(Tehniline!$A$38,Tehniline!$A$36),-'Lehm ja ratsiooni tingimused'!$D$21,0) -> 0 | AO6: =IF(AND(Tehniline!$A$39,Tehniline!$A$36),-'Lehm ja ratsiooni tingimused'!$D$21,0) -> 0 | AP6: =IF(AND(Tehniline!$A$40,Tehniline!$A$36),-'Lehm ja ratsiooni tingimused'!$D$21,0) -> 0 | AQ6: =IF(AND(Tehniline!$A$41,Tehniline!$A$36),-'Lehm ja ratsiooni tingimused'!$D$21,0) -> 0 | AR6: =IF(AND(Tehniline!$A$42,Tehniline!$A$36),-'Lehm ja ratsiooni tingimused'!$D$21,0) -> 0 | AS6: =IF(AND(Tehniline!$A$43,Tehniline!$A$36),-'Lehm ja ratsiooni tingimused'!$D$21,0) -> 0 | AT6: =IF(AND(Tehniline!$A$44,Tehniline!$A$36),-'Lehm ja ratsiooni tingimused'!$D$21,0) -> 0
B7: Silo | C7: Timutisilo LL 200-12-40 | D7: 0.03 | E7: 0.35 | F7: 10.1 | G7: 289 | H7: 76 | I7: -15 | J7: -15 | K7: 5.2 | L7: 5.2 | M7: 2.7 | N7: 115 | P7: 30 | Q7: 375 | R7: 571 | S7: 1 | T7: =-'Lehm ja ratsiooni tingimused'!$D$20 -> -1 | AD7: =0-'Lehm ja ratsiooni tingimused'!$D$19 -> 0 | AH7: =IF(AND(Tehniline!$A$32,Tehniline!$A$37),-'Lehm ja ratsiooni tingimused'!$D$21,0) -> 0 | AI7: =IF(AND(Tehniline!$A$33,Tehniline!$A$37),-'Lehm ja ratsiooni tingimused'!$D$21,0) -> 0 | AJ7: =IF(AND(Tehniline!$A$34,Tehniline!$A$37),-'Lehm ja ratsiooni tingimused'!$D$21,0) -> 0 | AK7: =IF(AND(Tehniline!$A$35,Tehniline!$A$37),-'Lehm ja ratsiooni tingimused'!$D$21,0) -> 0 | AL7: =IF(AND(Tehniline!$A$36,Tehniline!$A$37),-'Lehm ja ratsiooni tingimused'!$D$21,0) -> 0 | AM7: =1-'Lehm ja ratsiooni tingimused'!$D$21 -> 1 | AN7: =IF(AND(Tehniline!$A$38,Tehniline!$A$37),-'Lehm ja ratsiooni tingimused'!$D$21,0) -> 0 | AO7: =IF(AND(Tehniline!$A$39,Tehniline!$A$37),-'Lehm ja ratsiooni tingimused'!$D$21,0) -> 0 | AP7: =IF(AND(Tehniline!$A$40,Tehniline!$A$37),-'Lehm ja ratsiooni tingimused'!$D$21,0) -> 0 | AQ7: =IF(AND(Tehniline!$A$41,Tehniline!$A$37),-'Lehm ja ratsiooni tingimused'!$D$21,0) -> 0 | AR7: =IF(AND(Tehniline!$A$42,Tehniline!$A$37),-'Lehm ja ratsiooni tingimused'!$D$21,0) -> 0 | AS7: =IF(AND(Tehniline!$A$43,Tehniline!$A$37),-'Lehm ja ratsiooni tingimused'!$D$21,0) -> 0 | AT7: =IF(AND(Tehniline!$A$44,Tehniline!$A$37),-'Lehm ja ratsiooni tingimused'!$D$21,0) -> 0
B8: Silo | C8: Odravilisesilo VK (vahaküpsus) 255-12-80 | D8: 0.03 | E8: 0.3 | F8: 9.2 | G8: 255 | H8: 72 | I8: -26 | J8: -26 | K8: 3.5 | L8: 3.5 | M8: 2.4 | N8: 96 | P8: 30 | Q8: 306 | R8: 514 | S8: 1 | T8: =-'Lehm ja ratsiooni tingimused'!$D$20 -> -1 | AD8: =0-'Lehm ja ratsiooni tingimused'!$D$19 -> 0 | AH8: =IF(AND(Tehniline!$A$32,Tehniline!$A$38),-'Lehm ja ratsiooni tingimused'!$D$21,0) -> 0 | AI8: =IF(AND(Tehniline!$A$33,Tehniline!$A$38),-'Lehm ja ratsiooni tingimused'!$D$21,0) -> 0 | AJ8: =IF(AND(Tehniline!$A$34,Tehniline!$A$38),-'Lehm ja ratsiooni tingimused'!$D$21,0) -> 0 | AK8: =IF(AND(Tehniline!$A$35,Tehniline!$A$38),-'Lehm ja ratsiooni tingimused'!$D$21,0) -> 0 | AL8: =IF(AND(Tehniline!$A$36,Tehniline!$A$38),-'Lehm ja ratsiooni tingimused'!$D$21,0) -> 0 | AM8: =IF(AND(Tehniline!$A$37,Tehniline!$A$38),-'Lehm ja ratsiooni tingimused'!$D$21,0) -> 0 | AN8: =1-'Lehm ja ratsiooni tingimused'!$D$21 -> 1 | AO8: =IF(AND(Tehniline!$A$39,Tehniline!$A$38),-'Lehm ja ratsiooni tingimused'!$D$21,0) -> 0 | AP8: =IF(AND(Tehniline!$A$40,Tehniline!$A$38),-'Lehm ja ratsiooni tingimused'!$D$21,0) -> 0 | AQ8: =IF(AND(Tehniline!$A$41,Tehniline!$A$38),-'Lehm ja ratsiooni tingimused'!$D$21,0) -> 0 | AR8: =IF(AND(Tehniline!$A$42,Tehniline!$A$38),-'Lehm ja ratsiooni tingimused'!$D$21,0) -> 0 | AS8: =IF(AND(Tehniline!$A$43,Tehniline!$A$38),-'Lehm ja ratsiooni tingimused'!$D$21,0) -> 0 | AT8: =IF(AND(Tehniline!$A$44,Tehniline!$A$38),-'Lehm ja ratsiooni tingimused'!$D$21,0) -> 0
B9: Silo | C9: V auk - rohusilo | D9: 0.03 | E9: 0.253 | F9: 8.8 | G9: 312 | H9: 72 | I9: 27 | J9: 27 | K9: 10.9 | L9: 10.9 | M9: 3.4 | N9: 96 | P9: 30 | Q9: 350 | R9: 500 | S9: 1 | T9: =-'Lehm ja ratsiooni tingimused'!$D$20 -> -1 | AD9: =0-'Lehm ja ratsiooni tingimused'!$D$19 -> 0 | AH9: =IF(AND(Tehniline!$A$32,Tehniline!$A$39),-'Lehm ja ratsiooni tingimused'!$D$21,0) -> 0 | AI9: =IF(AND(Tehniline!$A$33,Tehniline!$A$39),-'Lehm ja ratsiooni tingimused'!$D$21,0) -> 0 | AJ9: =IF(AND(Tehniline!$A$34,Tehniline!$A$39),-'Lehm ja ratsiooni tingimused'!$D$21,0) -> 0 | AK9: =IF(AND(Tehniline!$A$35,Tehniline!$A$39),-'Lehm ja ratsiooni tingimused'!$D$21,0) -> 0 | AL9: =IF(AND(Tehniline!$A$36,Tehniline!$A$39),-'Lehm ja ratsiooni tingimused'!$D$21,0) -> 0 | AM9: =IF(AND(Tehniline!$A$37,Tehniline!$A$39),-'Lehm ja ratsiooni tingimused'!$D$21,0) -> 0 | AN9: =IF(AND(Tehniline!$A$38,Tehniline!$A$39),-'Lehm ja ratsiooni tingimused'!$D$21,0) -> 0 | AO9: =1-'Lehm ja ratsiooni tingimused'!$D$21 -> 1 | AP9: =IF(AND(Tehniline!$A$40,Tehniline!$A$39),-'Lehm ja ratsiooni tingimused'!$D$21,0) -> 0 | AQ9: =IF(AND(Tehniline!$A$41,Tehniline!$A$39),-'Lehm ja ratsiooni tingimused'!$D$21,0) -> 0 | AR9: =IF(AND(Tehniline!$A$42,Tehniline!$A$39),-'Lehm ja ratsiooni tingimused'!$D$21,0) -> 0 | AS9: =IF(AND(Tehniline!$A$43,Tehniline!$A$39),-'Lehm ja ratsiooni tingimused'!$D$21,0) -> 0 | AT9: =IF(AND(Tehniline!$A$44,Tehniline!$A$39),-'Lehm ja ratsiooni tingimused'!$D$21,0) -> 0
B10: Silo | J10: 0 | L10: 0 | S10: 1 | T10: =-'Lehm ja ratsiooni tingimused'!$D$20 -> -1 | AD10: =0-'Lehm ja ratsiooni tingimused'!$D$19 -> 0 | AH10: =IF(AND(Tehniline!$A$32,Tehniline!$A$40),-'Lehm ja ratsiooni tingimused'!$D$21,0) -> 0 | AI10: =IF(AND(Tehniline!$A$33,Tehniline!$A$40),-'Lehm ja ratsiooni tingimused'!$D$21,0) -> 0 | AJ10: =IF(AND(Tehniline!$A$34,Tehniline!$A$40),-'Lehm ja ratsiooni tingimused'!$D$21,0) -> 0 | AK10: =IF(AND(Tehniline!$A$35,Tehniline!$A$40),-'Lehm ja ratsiooni tingimused'!$D$21,0) -> 0 | AL10: =IF(AND(Tehniline!$A$36,Tehniline!$A$40),-'Lehm ja ratsiooni tingimused'!$D$21,0) -> 0 | AM10: =IF(AND(Tehniline!$A$37,Tehniline!$A$40),-'Lehm ja ratsiooni tingimused'!$D$21,0) -> 0 | AN10: =IF(AND(Tehniline!$A$38,Tehniline!$A$40),-'Lehm ja ratsiooni tingimused'!$D$21,0) -> 0 | AO10: =IF(AND(Tehniline!$A$39,Tehniline!$A$40),-'Lehm ja ratsiooni tingimused'!$D$21,0) -> 0 | AP10: =1-'Lehm ja ratsiooni tingimused'!$D$21 -> 1 | AQ10: =IF(AND(Tehniline!$A$41,Tehniline!$A$40),-'Lehm ja ratsiooni tingimused'!$D$21,0) -> 0 | AR10: =IF(AND(Tehniline!$A$42,Tehniline!$A$40),-'Lehm ja ratsiooni tingimused'!$D$21,0) -> 0 | AS10: =IF(AND(Tehniline!$A$43,Tehniline!$A$40),-'Lehm ja ratsiooni tingimused'!$D$21,0) -> 0 | AT10: =IF(AND(Tehniline!$A$44,Tehniline!$A$40),-'Lehm ja ratsiooni tingimused'!$D$21,0) -> 0
B11: Silo | J11: 0 | L11: 0 | S11: 1 | T11: =-'Lehm ja ratsiooni tingimused'!$D$20 -> -1 | AD11: =0-'Lehm ja ratsiooni tingimused'!$D$19 -> 0 | AH11: =IF(AND(Tehniline!$A$32,Tehniline!$A$41),-'Lehm ja ratsiooni tingimused'!$D$21,0) -> 0 | AI11: =IF(AND(Tehniline!$A$33,Tehniline!$A$41),-'Lehm ja ratsiooni tingimused'!$D$21,0) -> 0 | AJ11: =IF(AND(Tehniline!$A$34,Tehniline!$A$41),-'Lehm ja ratsiooni tingimused'!$D$21,0) -> 0 | AK11: =IF(AND(Tehniline!$A$35,Tehniline!$A$41),-'Lehm ja ratsiooni tingimused'!$D$21,0) -> 0 | AL11: =IF(AND(Tehniline!$A$36,Tehniline!$A$41),-'Lehm ja ratsiooni tingimused'!$D$21,0) -> 0 | AM11: =IF(AND(Tehniline!$A$37,Tehniline!$A$41),-'Lehm ja ratsiooni tingimused'!$D$21,0) -> 0 | AN11: =IF(AND(Tehniline!$A$38,Tehniline!$A$41),-'Lehm ja ratsiooni tingimused'!$D$21,0) -> 0 | AO11: =IF(AND(Tehniline!$A$39,Tehniline!$A$41),-'Lehm ja ratsiooni tingimused'!$D$21,0) -> 0 | AP11: =IF(AND(Tehniline!$A$40,Tehniline!$A$41),-'Lehm ja ratsiooni tingimused'!$D$21,0) -> 0 | AQ11: =1-'Lehm ja ratsiooni tingimused'!$D$21 -> 1 | AR11: =IF(AND(Tehniline!$A$42,Tehniline!$A$41),-'Lehm ja ratsiooni tingimused'!$D$21,0) -> 0 | AS11: =IF(AND(Tehniline!$A$43,Tehniline!$A$41),-'Lehm ja ratsiooni tingimused'!$D$21,0) -> 0 | AT11: =IF(AND(Tehniline!$A$44,Tehniline!$A$41),-'Lehm ja ratsiooni tingimused'!$D$21,0) -> 0
B12: Silo | J12: 0 | L12: 0 | S12: 1 | T12: =-'Lehm ja ratsiooni tingimused'!$D$20 -> -1 | AD12: =0-'Lehm ja ratsiooni tingimused'!$D$19 -> 0 | AH12: =IF(AND(Tehniline!$A$32,Tehniline!$A$42),-'Lehm ja ratsiooni tingimused'!$D$21,0) -> 0 | AI12: =IF(AND(Tehniline!$A$33,Tehniline!$A$42),-'Lehm ja ratsiooni tingimused'!$D$21,0) -> 0 | AJ12: =IF(AND(Tehniline!$A$34,Tehniline!$A$42),-'Lehm ja ratsiooni tingimused'!$D$21,0) -> 0 | AK12: =IF(AND(Tehniline!$A$35,Tehniline!$A$42),-'Lehm ja ratsiooni tingimused'!$D$21,0) -> 0 | AL12: =IF(AND(Tehniline!$A$36,Tehniline!$A$42),-'Lehm ja ratsiooni tingimused'!$D$21,0) -> 0 | AM12: =IF(AND(Tehniline!$A$37,Tehniline!$A$42),-'Lehm ja ratsiooni tingimused'!$D$21,0) -> 0 | AN12: =IF(AND(Tehniline!$A$38,Tehniline!$A$42),-'Lehm ja ratsiooni tingimused'!$D$21,0) -> 0 | AO12: =IF(AND(Tehniline!$A$39,Tehniline!$A$42),-'Lehm ja ratsiooni tingimused'!$D$21,0) -> 0 | AP12: =IF(AND(Tehniline!$A$40,Tehniline!$A$42),-'Lehm ja ratsiooni tingimused'!$D$21,0) -> 0 | AQ12: =IF(AND(Tehniline!$A$41,Tehniline!$A$42),-'Lehm ja ratsiooni tingimused'!$D$21,0) -> 0 | AR12: =1-'Lehm ja ratsiooni tingimused'!$D$21 -> 1 | AS12: =IF(AND(Tehniline!$A$43,Tehniline!$A$42),-'Lehm ja ratsiooni tingimused'!$D$21,0) -> 0 | AT12: =IF(AND(Tehniline!$A$44,Tehniline!$A$42),-'Lehm ja ratsiooni tingimused'!$D$21,0) -> 0
B13: Silo | J13: 0 | L13: 0 | S13: 1 | T13: =-'Lehm ja ratsiooni tingimused'!$D$20 -> -1 | AD13: =0-'Lehm ja ratsiooni tingimused'!$D$19 -> 0 | AH13: =IF(AND(Tehniline!$A$32,Tehniline!$A$43),-'Lehm ja ratsiooni tingimused'!$D$21,0) -> 0 | AI13: =IF(AND(Tehniline!$A$33,Tehniline!$A$43),-'Lehm ja ratsiooni tingimused'!$D$21,0) -> 0 | AJ13: =IF(AND(Tehniline!$A$34,Tehniline!$A$43),-'Lehm ja ratsiooni tingimused'!$D$21,0) -> 0 | AK13: =IF(AND(Tehniline!$A$35,Tehniline!$A$43),-'Lehm ja ratsiooni tingimused'!$D$21,0) -> 0 | AL13: =IF(AND(Tehniline!$A$36,Tehniline!$A$43),-'Lehm ja ratsiooni tingimused'!$D$21,0) -> 0 | AM13: =IF(AND(Tehniline!$A$37,Tehniline!$A$43),-'Lehm ja ratsiooni tingimused'!$D$21,0) -> 0 | AN13: =IF(AND(Tehniline!$A$38,Tehniline!$A$43),-'Lehm ja ratsiooni tingimused'!$D$21,0) -> 0 | AO13: =IF(AND(Tehniline!$A$39,Tehniline!$A$43),-'Lehm ja ratsiooni tingimused'!$D$21,0) -> 0 | AP13: =IF(AND(Tehniline!$A$40,Tehniline!$A$43),-'Lehm ja ratsiooni tingimused'!$D$21,0) -> 0 | AQ13: =IF(AND(Tehniline!$A$41,Tehniline!$A$43),-'Lehm ja ratsiooni tingimused'!$D$21,0) -> 0 | AR13: =IF(AND(Tehniline!$A$42,Tehniline!$A$43),-'Lehm ja ratsiooni tingimused'!$D$21,0) -> 0 | AS13: =1-'Lehm ja ratsiooni tingimused'!$D$21 -> 1 | AT13: =IF(AND(Tehniline!$A$44,Tehniline!$A$43),-'Lehm ja ratsiooni tingimused'!$D$21,0) -> 0
B14: Maisisilo | C14: Maisisilo PK 260-12-70 | D14: 0.03 | E14: 0.22 | F14: 10.4 | G14: 280 | H14: 76 | I14: -34 | J14: -34 | K14: 4 | L14: 4 | M14: 2.3 | N14: 95 | P14: 200 | Q14: 356 | R14: 575 | S14: 1 | T14: =1-'Lehm ja ratsiooni tingimused'!$D$20 -> 0 | AD14: =1-'Lehm ja ratsiooni tingimused'!$D$19 -> 1
B15: Maisisilo | C15: VII auk - maisisilo | D15: 0.03 | E15: 0.23 | F15: 11 | G15: 223 | H15: 79 | I15: -43 | J15: -43 | K15: 3.9 | L15: 3.9 | M15: 2.1 | N15: 91 | P15: 200 | Q15: 356 | R15: 575 | S15: 1 | T15: =1-'Lehm ja ratsiooni tingimused'!$D$20 -> 0 | AD15: =1-'Lehm ja ratsiooni tingimused'!$D$19 -> 1
B16: Maisisilo | J16: 0 | L16: 0 | S16: 1 | T16: =1-'Lehm ja ratsiooni tingimused'!$D$20 -> 0 | AD16: =1-'Lehm ja ratsiooni tingimused'!$D$19 -> 1
B17: Maisisilo | J17: 0 | L17: 0 | S17: 1 | T17: =1-'Lehm ja ratsiooni tingimused'!$D$20 -> 0 | AD17: =1-'Lehm ja ratsiooni tingimused'!$D$19 -> 1
B18: Maisisilo | J18: 0 | L18: 0 | S18: 1 | T18: =1-'Lehm ja ratsiooni tingimused'!$D$20 -> 0 | AD18: =1-'Lehm ja ratsiooni tingimused'!$D$19 -> 1
B19: Hein | C19: Hein kõrreliste kultuurrohumaa 030-15-60 | D19: 0.078 | E19: 0.83 | F19: 8.4 | G19: 335 | H19: 69 | I19: -39 | J19: -39 | K19: 5.3 | L19: 5.3 | M19: 2.3 | N19: 80 | Q19: 423 | R19: 667 | U19: 1
B20: Hein | C20: Põldhein (75% ristikut) LL 101-15-40 | D20: 0.078 | E20: 0.83 | F20: 9.3 | G20: 308 | H20: 83 | I20: -9 | J20: -9 | K20: 11.4 | L20: 11.4 | M20: 2.5 | N20: 134 | Q20: 375 | R20: 530 | U20: 1
B21: Hein | C21: Põldhein (50% ristikut) LL 103-15-40 | D21: 0.078 | E21: 0.83 | F21: 9.3 | G21: 314 | H21: 81 | I21: -17 | J21: -17 | K21: 9.2 | L21: 9.2 | M21: 2.4 | N21: 123 | Q21: 384 | R21: 569 | U21: 1
B22: Hein | C22: Timuthein LL 200-15-40 | D22: 0.078 | E22: 0.83 | F22: 9 | G22: 325 | H22: 76 | I22: -30 | J22: -30 | K22: 4.8 | L22: 4.8 | M22: 2.4 | N22: 100 | Q22: 403 | R22: 646 | U22: 1
B23: Hein | C23: Põldhein (25% ristikut) LL 106-15-40 | D23: 0.078 | E23: 0.83 | F23: 9 | G23: 319 | H23: 77 | I23: -22 | J23: -22 | K23: 7 | L23: 7 | M23: 2.4 | N23: 111 | Q23: 393 | R23: 607 | U23: 1
B24: Hein | C24: Püsirohumaa hein | D24: 0.078 | E24: 0.83 | F24: 7.1 | G24: 304 | H24: 63 | I24: -19 | J24: -19 | K24: 4 | L24: 4 | M24: 2 | N24: 95 | Q24: 396 | R24: 604 | U24: 1
B25: Hein | J25: 0 | L25: 0 | U25: 1
B26: Hein | J26: 0 | L26: 0 | U26: 1
B27: Hein | J27: 0 | L27: 0 | U27: 1
B28: Põhk | C28: Kaerapõhk 250-16-0 | D28: 0.015 | E28: 0.83 | F28: 6.8 | G28: 425 | H28: 54 | I28: -48 | J28: -48 | K28: 3.9 | L28: 3.9 | M28: 1.1 | N28: 45 | Q28: 471 | R28: 751 | V28: 1
B29: Põhk | C29: Odrapõhk 255-16-0 | D29: 0.015 | E29: 0.83 | F29: 6.9 | G29: 420 | H29: 56 | I29: -48 | J29: -48 | K29: 3.9 | L29: 3.9 | M29: 1 | N29: 47 | Q29: 499 | R29: 788 | V29: 1
B30: Põhk | C30: Nisupõhk 265-16-0 | D30: 0.015 | E30: 0.83 | F30: 6 | G30: 436 | H30: 48 | I30: -45 | J30: -45 | K30: 3 | L30: 3 | M30: 0.8 | N30: 37 | Q30: 535 | R30: 818 | V30: 1
B31: Põhk | C31: Segaviljapõhk 061-16-0 | D31: 0.015 | E31: 0.83 | F31: 7 | G31: 420 | H31: 58 | I31: -34 | J31: -34 | K31: 10.2 | L31: 10.2 | M31: 1.7 | N31: 65 | V31: 1
B32: Põhk | C32: Rapsipõhk | D32: 0.015 | E32: 0.82 | F32: 5.3 | G32: 498 | H32: 49 | I32: -52 | J32: -52 | K32: 14.2 | L32: 14.2 | M32: 0.8 | N32: 31 | V32: 1
B33: Põhk | J33: 0 | L33: 0 | V33: 1
B34: Põhk | J34: 0 | L34: 0 | V34: 1
B35: Põhk | J35: 0 | L35: 0 | V35: 1
B36: Õlikoogid | C36: Rapsikook 350-28 | D36: 0.27 | E36: 0.9 | F36: 13.4 | G36: 123 | H36: 161 | I36: 139 | J36: 139 | K36: 8.3 | L36: 8.3 | M36: 10.5 | N36: 342 | P36: 120 | Q36: 232 | R36: 333 | W36: 1 | Z36: 1
B37: Õlikoogid | C37: Rapsisrott 350-29 | D37: 0.37 | E37: 0.9 | F37: 11.7 | G37: 135 | H37: 157 | I37: 142 | J37: 142 | K37: 8 | L37: 8 | M37: 11.5 | N37: 382 | P37: 120 | W37: 1 | Z37: 1
B38: Õlikoogid | C38: Sojašrott 310-29 | D38: 0.46 | E38: 0.88 | F38: 14.1 | G38: 79 | H38: 196 | I38: 200 | J38: 200 | K38: 3.4 | L38: 3.4 | M38: 7.3 | N38: 500 | P38: 260 | Q38: 94 | R38: 170 | W38: 1
B39: Õlikoogid | C39: Päevalillekook 300-28 | D39: 0.4 | E39: 0.9 | F39: 10.8 | G39: 224 | H39: 125 | I39: 164 | J39: 164 | K39: 3.5 | L39: 3.5 | M39: 9.5 | N39: 356 | P39: 120 | W39: 1
B40: Õlikoogid | C40: Päevalillesrott 300-29 | D40: 0.4 | E40: 0.9 | F40: 9.3 | G40: 235 | H40: 134 | I40: 175 | J40: 175 | K40: 4.4 | L40: 4.4 | M40: 11.5 | N40: 380 | P40: 120 | W40: 1
B41: Õlikoogid | J41: 0 | L41: 0 | W41: 1
B42: Õlikoogid | J42: 0 | L42: 0 | W42: 1
B43: Õlikoogid | J43: 0 | L43: 0 | W43: 1
B44: Teraviljad | C44: Oder 255-20/21 | D44: 0.159 | E44: 0.86 | F44: 13 | G44: 60 | H44: 103 | I44: -44 | J44: -44 | K44: 0.8 | L44: 0.8 | M44: 4.1 | N44: 125 | P44: 600 | Q44: 79 | R44: 221 | W44: 1 | X44: 0.5 | Y44: =0-'Lehm ja ratsiooni tingimused'!$D$32 -> -0.5 | AV44: =1-'Lehm ja ratsiooni tingimused'!$D$33 -> 1 | AW44: =IF(AND(Tehniline!$B$33,Tehniline!$B32),-'Lehm ja ratsiooni tingimused'!$D$33,0) -> 0 | AX44: =IF(AND(Tehniline!$B$34,Tehniline!$B32),-'Lehm ja ratsiooni tingimused'!$D$33,0) -> 0 | AY44: =IF(AND(Tehniline!$B$35,Tehniline!$B32),-'Lehm ja ratsiooni tingimused'!$D$33,0) -> 0 | AZ44: =IF(AND(Tehniline!$B$36,Tehniline!$B32),-'Lehm ja ratsiooni tingimused'!$D$33,0) -> 0 | BA44: =IF(AND(Tehniline!$B$37,Tehniline!$B32),-'Lehm ja ratsiooni tingimused'!$D$33,0) -> 0 | BB44: =IF(AND(Tehniline!$B$38,Tehniline!$B32),-'Lehm ja ratsiooni tingimused'!$D$33,0) -> 0 | BC44: =IF(AND(Tehniline!$B$39,Tehniline!$B32),-'Lehm ja ratsiooni tingimused'!$D$33,0) -> 0 | BD44: =IF(AND(Tehniline!$B$40,Tehniline!$B32),-'Lehm ja ratsiooni tingimused'!$D$33,0) -> 0 | BE44: =IF(AND(Tehniline!$B$41,Tehniline!$B32),-'Lehm ja ratsiooni tingimused'!$D$33,0) -> 0 | BF44: =IF(AND(Tehniline!$B$42,Tehniline!$B32),-'Lehm ja ratsiooni tingimused'!$D$33,0) -> 0 | BG44: =IF(AND(Tehniline!$B$43,Tehniline!$B32),-'Lehm ja ratsiooni tingimused'!$D$33,0) -> 0 | BH44: =IF(AND(Tehniline!$B$44,Tehniline!$B32),-'Lehm ja ratsiooni tingimused'!$D$33,0) -> 0 | BI44: =IF(AND(Tehniline!$B$45,Tehniline!$B32),-'Lehm ja ratsiooni tingimused'!$D$33,0) -> 0 | BJ44: =IF(AND(Tehniline!$B$46,Tehniline!$B32),-'Lehm ja ratsiooni tingimused'!$D$33,0) -> 0 | BK44: =IF(AND(Tehniline!$B$47,Tehniline!$B32),-'Lehm ja ratsiooni tingimused'!$D$33,0) -> 0 | BL44: =IF(AND(Tehniline!$B$48,Tehniline!$B32),-'Lehm ja ratsiooni tingimused'!$D$33,0) -> 0 | BM44: =IF(AND(Tehniline!$B$49,Tehniline!$B32),-'Lehm ja ratsiooni tingimused'!$D$33,0) -> 0 | BN44: =IF(AND(Tehniline!$B$50,Tehniline!$B32),-'Lehm ja ratsiooni tingimused'!$D$33,0) -> 0 | BO44: =IF(AND(Tehniline!$B$51,Tehniline!$B32),-'Lehm ja ratsiooni tingimused'!$D$33,0) -> 0 | BP44: =IF(AND(Tehniline!$B$52,Tehniline!$B32),-'Lehm ja ratsiooni tingimused'!$D$33,0) -> 0 | BQ44: =IF(AND(Tehniline!$B$53,Tehniline!$B32),-'Lehm ja ratsiooni tingimused'!$D$33,0) -> 0 | BR44: =IF(AND(Tehniline!$B$54,Tehniline!$B32),-'Lehm ja ratsiooni tingimused'!$D$33,0) -> 0 | BS44: =IF(AND(Tehniline!$B$55,Tehniline!$B32),-'Lehm ja ratsiooni tingimused'!$D$33,0) -> 0 | BT44: =IF(AND(Tehniline!$B$56,Tehniline!$B32),-'Lehm ja ratsiooni tingimused'!$D$33,0) -> 0
B45: Teraviljad | C45: Mais 260-20/21 | D45: 0.2 | E45: 0.86 | F45: 14.2 | G45: 29 | H45: 121 | I45: -100 | J45: -100 | K45: 0.4 | L45: 0.4 | M45: 3.1 | N45: 95 | P45: 700 | Q45: 28 | R45: 108 | W45: 1 | X45: -0.5 | Y45: =0-'Lehm ja ratsiooni tingimused'!$D$32 -> -0.5 | AV45: =IF(AND(Tehniline!$B$32,Tehniline!$B33),-'Lehm ja ratsiooni tingimused'!$D$33,0) -> 0 | AW45: =1-'Lehm ja ratsiooni tingimused'!$D$33 -> 1 | AX45: =IF(AND(Tehniline!$B$34,Tehniline!$B33),-'Lehm ja ratsiooni tingimused'!$D$33,0) -> 0 | AY45: =IF(AND(Tehniline!$B$35,Tehniline!$B33),-'Lehm ja ratsiooni tingimused'!$D$33,0) -> 0 | AZ45: =IF(AND(Tehniline!$B$36,Tehniline!$B33),-'Lehm ja ratsiooni tingimused'!$D$33,0) -> 0 | BA45: =IF(AND(Tehniline!$B$37,Tehniline!$B33),-'Lehm ja ratsiooni tingimused'!$D$33,0) -> 0 | BB45: =IF(AND(Tehniline!$B$38,Tehniline!$B33),-'Lehm ja ratsiooni tingimused'!$D$33,0) -> 0 | BC45: =IF(AND(Tehniline!$B$39,Tehniline!$B33),-'Lehm ja ratsiooni tingimused'!$D$33,0) -> 0 | BD45: =IF(AND(Tehniline!$B$40,Tehniline!$B33),-'Lehm ja ratsiooni tingimused'!$D$33,0) -> 0 | BE45: =IF(AND(Tehniline!$B$41,Tehniline!$B33),-'Lehm ja ratsiooni tingimused'!$D$33,0) -> 0 | BF45: =IF(AND(Tehniline!$B$42,Tehniline!$B33),-'Lehm ja ratsiooni tingimused'!$D$33,0) -> 0 | BG45: =IF(AND(Tehniline!$B$43,Tehniline!$B33),-'Lehm ja ratsiooni tingimused'!$D$33,0) -> 0 | BH45: =IF(AND(Tehniline!$B$44,Tehniline!$B33),-'Lehm ja ratsiooni tingimused'!$D$33,0) -> 0 | BI45: =IF(AND(Tehniline!$B$45,Tehniline!$B33),-'Lehm ja ratsiooni tingimused'!$D$33,0) -> 0 | BJ45: =IF(AND(Tehniline!$B$46,Tehniline!$B33),-'Lehm ja ratsiooni tingimused'!$D$33,0) -> 0 | BK45: =IF(AND(Tehniline!$B$47,Tehniline!$B33),-'Lehm ja ratsiooni tingimused'!$D$33,0) -> 0 | BL45: =IF(AND(Tehniline!$B$48,Tehniline!$B33),-'Lehm ja ratsiooni tingimused'!$D$33,0) -> 0 | BM45: =IF(AND(Tehniline!$B$49,Tehniline!$B33),-'Lehm ja ratsiooni tingimused'!$D$33,0) -> 0 | BN45: =IF(AND(Tehniline!$B$50,Tehniline!$B33),-'Lehm ja ratsiooni tingimused'!$D$33,0) -> 0 | BO45: =IF(AND(Tehniline!$B$51,Tehniline!$B33),-'Lehm ja ratsiooni tingimused'!$D$33,0) -> 0 | BP45: =IF(AND(Tehniline!$B$52,Tehniline!$B33),-'Lehm ja ratsiooni tingimused'!$D$33,0) -> 0 | BQ45: =IF(AND(Tehniline!$B$53,Tehniline!$B33),-'Lehm ja ratsiooni tingimused'!$D$33,0) -> 0 | BR45: =IF(AND(Tehniline!$B$54,Tehniline!$B33),-'Lehm ja ratsiooni tingimused'!$D$33,0) -> 0 | BS45: =IF(AND(Tehniline!$B$55,Tehniline!$B33),-'Lehm ja ratsiooni tingimused'!$D$33,0) -> 0 | BT45: =IF(AND(Tehniline!$B$56,Tehniline!$B33),-'Lehm ja ratsiooni tingimused'!$D$33,0) -> 0
B46: Teraviljad | C46: Kaer 250-20/21 | D46: 0.15 | E46: 0.86 | F46: 11.9 | G46: 112 | H46: 92 | I46: -23 | J46: -23 | K46: 1.2 | L46: 1.2 | M46: 3.8 | N46: 127 | P46: 600 | Q46: 111 | R46: 310 | W46: 1 | X46: -0.5 | Y46: =0-'Lehm ja ratsiooni tingimused'!$D$32 -> -0.5 | AV46: =IF(AND(Tehniline!$B$32,Tehniline!$B34),-'Lehm ja ratsiooni tingimused'!$D$33,0) -> 0 | AW46: =IF(AND(Tehniline!$B$33,Tehniline!$B34),-'Lehm ja ratsiooni tingimused'!$D$33,0) -> 0 | AX46: =1-'Lehm ja ratsiooni tingimused'!$D$33 -> 1 | AY46: =IF(AND(Tehniline!$B$35,Tehniline!$B34),-'Lehm ja ratsiooni tingimused'!$D$33,0) -> 0 | AZ46: =IF(AND(Tehniline!$B$36,Tehniline!$B34),-'Lehm ja ratsiooni tingimused'!$D$33,0) -> 0 | BA46: =IF(AND(Tehniline!$B$37,Tehniline!$B34),-'Lehm ja ratsiooni tingimused'!$D$33,0) -> 0 | BB46: =IF(AND(Tehniline!$B$38,Tehniline!$B34),-'Lehm ja ratsiooni tingimused'!$D$33,0) -> 0 | BC46: =IF(AND(Tehniline!$B$39,Tehniline!$B34),-'Lehm ja ratsiooni tingimused'!$D$33,0) -> 0 | BD46: =IF(AND(Tehniline!$B$40,Tehniline!$B34),-'Lehm ja ratsiooni tingimused'!$D$33,0) -> 0 | BE46: =IF(AND(Tehniline!$B$41,Tehniline!$B34),-'Lehm ja ratsiooni tingimused'!$D$33,0) -> 0 | BF46: =IF(AND(Tehniline!$B$42,Tehniline!$B34),-'Lehm ja ratsiooni tingimused'!$D$33,0) -> 0 | BG46: =IF(AND(Tehniline!$B$43,Tehniline!$B34),-'Lehm ja ratsiooni tingimused'!$D$33,0) -> 0 | BH46: =IF(AND(Tehniline!$B$44,Tehniline!$B34),-'Lehm ja ratsiooni tingimused'!$D$33,0) -> 0 | BI46: =IF(AND(Tehniline!$B$45,Tehniline!$B34),-'Lehm ja ratsiooni tingimused'!$D$33,0) -> 0 | BJ46: =IF(AND(Tehniline!$B$46,Tehniline!$B34),-'Lehm ja ratsiooni tingimused'!$D$33,0) -> 0 | BK46: =IF(AND(Tehniline!$B$47,Tehniline!$B34),-'Lehm ja ratsiooni tingimused'!$D$33,0) -> 0 | BL46: =IF(AND(Tehniline!$B$48,Tehniline!$B34),-'Lehm ja ratsiooni tingimused'!$D$33,0) -> 0 | BM46: =IF(AND(Tehniline!$B$49,Tehniline!$B34),-'Lehm ja ratsiooni tingimused'!$D$33,0) -> 0 | BN46: =IF(AND(Tehniline!$B$50,Tehniline!$B34),-'Lehm ja ratsiooni tingimused'!$D$33,0) -> 0 | BO46: =IF(AND(Tehniline!$B$51,Tehniline!$B34),-'Lehm ja ratsiooni tingimused'!$D$33,0) -> 0 | BP46: =IF(AND(Tehniline!$B$52,Tehniline!$B34),-'Lehm ja ratsiooni tingimused'!$D$33,0) -> 0 | BQ46: =IF(AND(Tehniline!$B$53,Tehniline!$B34),-'Lehm ja ratsiooni tingimused'!$D$33,0) -> 0 | BR46: =IF(AND(Tehniline!$B$54,Tehniline!$B34),-'Lehm ja ratsiooni tingimused'!$D$33,0) -> 0 | BS46: =IF(AND(Tehniline!$B$55,Tehniline!$B34),-'Lehm ja ratsiooni tingimused'!$D$33,0) -> 0 | BT46: =IF(AND(Tehniline!$B$56,Tehniline!$B34),-'Lehm ja ratsiooni tingimused'!$D$33,0) -> 0
B47: Teraviljad | C47: Rukis 270-20/21 | D47: 0.13 | E47: 0.86 | F47: 13.6 | G47: 27 | H47: 103 | I47: -60 | J47: -60 | K47: 0.7 | L47: 0.7 | M47: 3.5 | N47: 110 | P47: 600 | W47: 1 | X47: -0.5 | Y47: =0-'Lehm ja ratsiooni tingimused'!$D$32 -> -0.5 | AV47: =IF(AND(Tehniline!$B$32,Tehniline!$B35),-'Lehm ja ratsiooni tingimused'!$D$33,0) -> 0 | AW47: =IF(AND(Tehniline!$B$33,Tehniline!$B35),-'Lehm ja ratsiooni tingimused'!$D$33,0) -> 0 | AX47: =IF(AND(Tehniline!$B$34,Tehniline!$B35),-'Lehm ja ratsiooni tingimused'!$D$33,0) -> 0 | AY47: =1-'Lehm ja ratsiooni tingimused'!$D$33 -> 1 | AZ47: =IF(AND(Tehniline!$B$36,Tehniline!$B35),-'Lehm ja ratsiooni tingimused'!$D$33,0) -> 0 | BA47: =IF(AND(Tehniline!$B$37,Tehniline!$B35),-'Lehm ja ratsiooni tingimused'!$D$33,0) -> 0 | BB47: =IF(AND(Tehniline!$B$38,Tehniline!$B35),-'Lehm ja ratsiooni tingimused'!$D$33,0) -> 0 | BC47: =IF(AND(Tehniline!$B$39,Tehniline!$B35),-'Lehm ja ratsiooni tingimused'!$D$33,0) -> 0 | BD47: =IF(AND(Tehniline!$B$40,Tehniline!$B35),-'Lehm ja ratsiooni tingimused'!$D$33,0) -> 0 | BE47: =IF(AND(Tehniline!$B$41,Tehniline!$B35),-'Lehm ja ratsiooni tingimused'!$D$33,0) -> 0 | BF47: =IF(AND(Tehniline!$B$42,Tehniline!$B35),-'Lehm ja ratsiooni tingimused'!$D$33,0) -> 0 | BG47: =IF(AND(Tehniline!$B$43,Tehniline!$B35),-'Lehm ja ratsiooni tingimused'!$D$33,0) -> 0 | BH47: =IF(AND(Tehniline!$B$44,Tehniline!$B35),-'Lehm ja ratsiooni tingimused'!$D$33,0) -> 0 | BI47: =IF(AND(Tehniline!$B$45,Tehniline!$B35),-'Lehm ja ratsiooni tingimused'!$D$33,0) -> 0 | BJ47: =IF(AND(Tehniline!$B$46,Tehniline!$B35),-'Lehm ja ratsiooni tingimused'!$D$33,0) -> 0 | BK47: =IF(AND(Tehniline!$B$47,Tehniline!$B35),-'Lehm ja ratsiooni tingimused'!$D$33,0) -> 0 | BL47: =IF(AND(Tehniline!$B$48,Tehniline!$B35),-'Lehm ja ratsiooni tingimused'!$D$33,0) -> 0 | BM47: =IF(AND(Tehniline!$B$49,Tehniline!$B35),-'Lehm ja ratsiooni tingimused'!$D$33,0) -> 0 | BN47: =IF(AND(Tehniline!$B$50,Tehniline!$B35),-'Lehm ja ratsiooni tingimused'!$D$33,0) -> 0 | BO47: =IF(AND(Tehniline!$B$51,Tehniline!$B35),-'Lehm ja ratsiooni tingimused'!$D$33,0) -> 0 | BP47: =IF(AND(Tehniline!$B$52,Tehniline!$B35),-'Lehm ja ratsiooni tingimused'!$D$33,0) -> 0 | BQ47: =IF(AND(Tehniline!$B$53,Tehniline!$B35),-'Lehm ja ratsiooni tingimused'!$D$33,0) -> 0 | BR47: =IF(AND(Tehniline!$B$54,Tehniline!$B35),-'Lehm ja ratsiooni tingimused'!$D$33,0) -> 0 | BS47: =IF(AND(Tehniline!$B$55,Tehniline!$B35),-'Lehm ja ratsiooni tingimused'!$D$33,0) -> 0 | BT47: =IF(AND(Tehniline!$B$56,Tehniline!$B35),-'Lehm ja ratsiooni tingimused'!$D$33,0) -> 0
B48: Teraviljad | C48: Tritikale 275-20/21 | D48: 0.15 | E48: 0.86 | F48: 13.9 | G48: 27 | H48: 105 | I48: -34 | J48: -34 | K48: 0.5 | L48: 0.5 | M48: 3.5 | N48: 140 | P48: 600 | W48: 1 | X48: -0.5 | Y48: =0-'Lehm ja ratsiooni tingimused'!$D$32 -> -0.5 | AV48: =IF(AND(Tehniline!$B$32,Tehniline!$B36),-'Lehm ja ratsiooni tingimused'!$D$33,0) -> 0 | AW48: =IF(AND(Tehniline!$B$33,Tehniline!$B36),-'Lehm ja ratsiooni tingimused'!$D$33,0) -> 0 | AX48: =IF(AND(Tehniline!$B$34,Tehniline!$B36),-'Lehm ja ratsiooni tingimused'!$D$33,0) -> 0 | AY48: =IF(AND(Tehniline!$B$35,Tehniline!$B36),-'Lehm ja ratsiooni tingimused'!$D$33,0) -> 0 | AZ48: =1-'Lehm ja ratsiooni tingimused'!$D$33 -> 1 | BA48: =IF(AND(Tehniline!$B$37,Tehniline!$B36),-'Lehm ja ratsiooni tingimused'!$D$33,0) -> 0 | BB48: =IF(AND(Tehniline!$B$38,Tehniline!$B36),-'Lehm ja ratsiooni tingimused'!$D$33,0) -> 0 | BC48: =IF(AND(Tehniline!$B$39,Tehniline!$B36),-'Lehm ja ratsiooni tingimused'!$D$33,0) -> 0 | BD48: =IF(AND(Tehniline!$B$40,Tehniline!$B36),-'Lehm ja ratsiooni tingimused'!$D$33,0) -> 0 | BE48: =IF(AND(Tehniline!$B$41,Tehniline!$B36),-'Lehm ja ratsiooni tingimused'!$D$33,0) -> 0 | BF48: =IF(AND(Tehniline!$B$42,Tehniline!$B36),-'Lehm ja ratsiooni tingimused'!$D$33,0) -> 0 | BG48: =IF(AND(Tehniline!$B$43,Tehniline!$B36),-'Lehm ja ratsiooni tingimused'!$D$33,0) -> 0 | BH48: =IF(AND(Tehniline!$B$44,Tehniline!$B36),-'Lehm ja ratsiooni tingimused'!$D$33,0) -> 0 | BI48: =IF(AND(Tehniline!$B$45,Tehniline!$B36),-'Lehm ja ratsiooni tingimused'!$D$33,0) -> 0 | BJ48: =IF(AND(Tehniline!$B$46,Tehniline!$B36),-'Lehm ja ratsiooni tingimused'!$D$33,0) -> 0 | BK48: =IF(AND(Tehniline!$B$47,Tehniline!$B36),-'Lehm ja ratsiooni tingimused'!$D$33,0) -> 0 | BL48: =IF(AND(Tehniline!$B$48,Tehniline!$B36),-'Lehm ja ratsiooni tingimused'!$D$33,0) -> 0 | BM48: =IF(AND(Tehniline!$B$49,Tehniline!$B36),-'Lehm ja ratsiooni tingimused'!$D$33,0) -> 0 | BN48: =IF(AND(Tehniline!$B$50,Tehniline!$B36),-'Lehm ja ratsiooni tingimused'!$D$33,0) -> 0 | BO48: =IF(AND(Tehniline!$B$51,Tehniline!$B36),-'Lehm ja ratsiooni tingimused'!$D$33,0) -> 0 | BP48: =IF(AND(Tehniline!$B$52,Tehniline!$B36),-'Lehm ja ratsiooni tingimused'!$D$33,0) -> 0 | BQ48: =IF(AND(Tehniline!$B$53,Tehniline!$B36),-'Lehm ja ratsiooni tingimused'!$D$33,0) -> 0 | BR48: =IF(AND(Tehniline!$B$54,Tehniline!$B36),-'Lehm ja ratsiooni tingimused'!$D$33,0) -> 0 | BS48: =IF(AND(Tehniline!$B$55,Tehniline!$B36),-'Lehm ja ratsiooni tingimused'!$D$33,0) -> 0 | BT48: =IF(AND(Tehniline!$B$56,Tehniline!$B36),-'Lehm ja ratsiooni tingimused'!$D$33,0) -> 0
B49: Teraviljad | C49: Kaerakliid 250-24 | D49: 0.15 | E49: 0.86 | F49: 9.5 | G49: 185 | H49: 76 | I49: -28 | J49: -28 | K49: 1.7 | L49: 1.7 | M49: 4.1 | N49: 95 | P49: 600 | W49: 1 | X49: -0.5 | Y49: =0-'Lehm ja ratsiooni tingimused'!$D$32 -> -0.5 | AV49: =IF(AND(Tehniline!$B$32,Tehniline!$B37),-'Lehm ja ratsiooni tingimused'!$D$33,0) -> 0 | AW49: =IF(AND(Tehniline!$B$33,Tehniline!$B37),-'Lehm ja ratsiooni tingimused'!$D$33,0) -> 0 | AX49: =IF(AND(Tehniline!$B$34,Tehniline!$B37),-'Lehm ja ratsiooni tingimused'!$D$33,0) -> 0 | AY49: =IF(AND(Tehniline!$B$35,Tehniline!$B37),-'Lehm ja ratsiooni tingimused'!$D$33,0) -> 0 | AZ49: =IF(AND(Tehniline!$B$36,Tehniline!$B37),-'Lehm ja ratsiooni tingimused'!$D$33,0) -> 0 | BA49: =1-'Lehm ja ratsiooni tingimused'!$D$33 -> 1 | BB49: =IF(AND(Tehniline!$B$38,Tehniline!$B37),-'Lehm ja ratsiooni tingimused'!$D$33,0) -> 0 | BC49: =IF(AND(Tehniline!$B$39,Tehniline!$B37),-'Lehm ja ratsiooni tingimused'!$D$33,0) -> 0 | BD49: =IF(AND(Tehniline!$B$40,Tehniline!$B37),-'Lehm ja ratsiooni tingimused'!$D$33,0) -> 0 | BE49: =IF(AND(Tehniline!$B$41,Tehniline!$B37),-'Lehm ja ratsiooni tingimused'!$D$33,0) -> 0 | BF49: =IF(AND(Tehniline!$B$42,Tehniline!$B37),-'Lehm ja ratsiooni tingimused'!$D$33,0) -> 0 | BG49: =IF(AND(Tehniline!$B$43,Tehniline!$B37),-'Lehm ja ratsiooni tingimused'!$D$33,0) -> 0 | BH49: =IF(AND(Tehniline!$B$44,Tehniline!$B37),-'Lehm ja ratsiooni tingimused'!$D$33,0) -> 0 | BI49: =IF(AND(Tehniline!$B$45,Tehniline!$B37),-'Lehm ja ratsiooni tingimused'!$D$33,0) -> 0 | BJ49: =IF(AND(Tehniline!$B$46,Tehniline!$B37),-'Lehm ja ratsiooni tingimused'!$D$33,0) -> 0 | BK49: =IF(AND(Tehniline!$B$47,Tehniline!$B37),-'Lehm ja ratsiooni tingimused'!$D$33,0) -> 0 | BL49: =IF(AND(Tehniline!$B$48,Tehniline!$B37),-'Lehm ja ratsiooni tingimused'!$D$33,0) -> 0 | BM49: =IF(AND(Tehniline!$B$49,Tehniline!$B37),-'Lehm ja ratsiooni tingimused'!$D$33,0) -> 0 | BN49: =IF(AND(Tehniline!$B$50,Tehniline!$B37),-'Lehm ja ratsiooni tingimused'!$D$33,0) -> 0 | BO49: =IF(AND(Tehniline!$B$51,Tehniline!$B37),-'Lehm ja ratsiooni tingimused'!$D$33,0) -> 0 | BP49: =IF(AND(Tehniline!$B$52,Tehniline!$B37),-'Lehm ja ratsiooni tingimused'!$D$33,0) -> 0 | BQ49: =IF(AND(Tehniline!$B$53,Tehniline!$B37),-'Lehm ja ratsiooni tingimused'!$D$33,0) -> 0 | BR49: =IF(AND(Tehniline!$B$54,Tehniline!$B37),-'Lehm ja ratsiooni tingimused'!$D$33,0) -> 0 | BS49: =IF(AND(Tehniline!$B$55,Tehniline!$B37),-'Lehm ja ratsiooni tingimused'!$D$33,0) -> 0 | BT49: =IF(AND(Tehniline!$B$56,Tehniline!$B37),-'Lehm ja ratsiooni tingimused'!$D$33,0) -> 0
B50: Teraviljad | C50: Odrakliid 255-24 | D50: 0.15 | E50: 0.86 | F50: 10.8 | G50: 155 | H50: 86 | I50: -10 | J50: -10 | K50: 1.6 | L50: 1.6 | M50: 4.3 | N50: 130 | P50: 600 | W50: 1 | X50: -0.5 | Y50: =0-'Lehm ja ratsiooni tingimused'!$D$32 -> -0.5 | AV50: =IF(AND(Tehniline!$B$32,Tehniline!$B38),-'Lehm ja ratsiooni tingimused'!$D$33,0) -> 0 | AW50: =IF(AND(Tehniline!$B$33,Tehniline!$B38),-'Lehm ja ratsiooni tingimused'!$D$33,0) -> 0 | AX50: =IF(AND(Tehniline!$B$34,Tehniline!$B38),-'Lehm ja ratsiooni tingimused'!$D$33,0) -> 0 | AY50: =IF(AND(Tehniline!$B$35,Tehniline!$B38),-'Lehm ja ratsiooni tingimused'!$D$33,0) -> 0 | AZ50: =IF(AND(Tehniline!$B$36,Tehniline!$B38),-'Lehm ja ratsiooni tingimused'!$D$33,0) -> 0 | BA50: =IF(AND(Tehniline!$B$37,Tehniline!$B38),-'Lehm ja ratsiooni tingimused'!$D$33,0) -> 0 | BB50: =1-'Lehm ja ratsiooni tingimused'!$D$33 -> 1 | BC50: =IF(AND(Tehniline!$B$39,Tehniline!$B38),-'Lehm ja ratsiooni tingimused'!$D$33,0) -> 0 | BD50: =IF(AND(Tehniline!$B$40,Tehniline!$B38),-'Lehm ja ratsiooni tingimused'!$D$33,0) -> 0 | BE50: =IF(AND(Tehniline!$B$41,Tehniline!$B38),-'Lehm ja ratsiooni tingimused'!$D$33,0) -> 0 | BF50: =IF(AND(Tehniline!$B$42,Tehniline!$B38),-'Lehm ja ratsiooni tingimused'!$D$33,0) -> 0 | BG50: =IF(AND(Tehniline!$B$43,Tehniline!$B38),-'Lehm ja ratsiooni tingimused'!$D$33,0) -> 0 | BH50: =IF(AND(Tehniline!$B$44,Tehniline!$B38),-'Lehm ja ratsiooni tingimused'!$D$33,0) -> 0 | BI50: =IF(AND(Tehniline!$B$45,Tehniline!$B38),-'Lehm ja ratsiooni tingimused'!$D$33,0) -> 0 | BJ50: =IF(AND(Tehniline!$B$46,Tehniline!$B38),-'Lehm ja ratsiooni tingimused'!$D$33,0) -> 0 | BK50: =IF(AND(Tehniline!$B$47,Tehniline!$B38),-'Lehm ja ratsiooni tingimused'!$D$33,0) -> 0 | BL50: =IF(AND(Tehniline!$B$48,Tehniline!$B38),-'Lehm ja ratsiooni tingimused'!$D$33,0) -> 0 | BM50: =IF(AND(Tehniline!$B$49,Tehniline!$B38),-'Lehm ja ratsiooni tingimused'!$D$33,0) -> 0 | BN50: =IF(AND(Tehniline!$B$50,Tehniline!$B38),-'Lehm ja ratsiooni tingimused'!$D$33,0) -> 0 | BO50: =IF(AND(Tehniline!$B$51,Tehniline!$B38),-'Lehm ja ratsiooni tingimused'!$D$33,0) -> 0 | BP50: =IF(AND(Tehniline!$B$52,Tehniline!$B38),-'Lehm ja ratsiooni tingimused'!$D$33,0) -> 0 | BQ50: =IF(AND(Tehniline!$B$53,Tehniline!$B38),-'Lehm ja ratsiooni tingimused'!$D$33,0) -> 0 | BR50: =IF(AND(Tehniline!$B$54,Tehniline!$B38),-'Lehm ja ratsiooni tingimused'!$D$33,0) -> 0 | BS50: =IF(AND(Tehniline!$B$55,Tehniline!$B38),-'Lehm ja ratsiooni tingimused'!$D$33,0) -> 0 | BT50: =IF(AND(Tehniline!$B$56,Tehniline!$B38),-'Lehm ja ratsiooni tingimused'!$D$33,0) -> 0
B51: Teraviljad | C51: Rukkikliid 270-24 | D51: 0.15 | E51: 0.86 | F51: 10.8 | G51: 100 | H51: 92 | I51: 10 | J51: 10 | K51: 1.4 | L51: 1.4 | M51: 10.2 | N51: 160 | P51: 600 | W51: 1 | X51: -0.5 | Y51: =0-'Lehm ja ratsiooni tingimused'!$D$32 -> -0.5 | AV51: =IF(AND(Tehniline!$B$32,Tehniline!$B39),-'Lehm ja ratsiooni tingimused'!$D$33,0) -> 0 | AW51: =IF(AND(Tehniline!$B$33,Tehniline!$B39),-'Lehm ja ratsiooni tingimused'!$D$33,0) -> 0 | AX51: =IF(AND(Tehniline!$B$34,Tehniline!$B39),-'Lehm ja ratsiooni tingimused'!$D$33,0) -> 0 | AY51: =IF(AND(Tehniline!$B$35,Tehniline!$B39),-'Lehm ja ratsiooni tingimused'!$D$33,0) -> 0 | AZ51: =IF(AND(Tehniline!$B$36,Tehniline!$B39),-'Lehm ja ratsiooni tingimused'!$D$33,0) -> 0 | BA51: =IF(AND(Tehniline!$B$37,Tehniline!$B39),-'Lehm ja ratsiooni tingimused'!$D$33,0) -> 0 | BB51: =IF(AND(Tehniline!$B$38,Tehniline!$B39),-'Lehm ja ratsiooni tingimused'!$D$33,0) -> 0 | BC51: =1-'Lehm ja ratsiooni tingimused'!$D$33 -> 1 | BD51: =IF(AND(Tehniline!$B$40,Tehniline!$B39),-'Lehm ja ratsiooni tingimused'!$D$33,0) -> 0 | BE51: =IF(AND(Tehniline!$B$41,Tehniline!$B39),-'Lehm ja ratsiooni tingimused'!$D$33,0) -> 0 | BF51: =IF(AND(Tehniline!$B$42,Tehniline!$B39),-'Lehm ja ratsiooni tingimused'!$D$33,0) -> 0 | BG51: =IF(AND(Tehniline!$B$43,Tehniline!$B39),-'Lehm ja ratsiooni tingimused'!$D$33,0) -> 0 | BH51: =IF(AND(Tehniline!$B$44,Tehniline!$B39),-'Lehm ja ratsiooni tingimused'!$D$33,0) -> 0 | BI51: =IF(AND(Tehniline!$B$45,Tehniline!$B39),-'Lehm ja ratsiooni tingimused'!$D$33,0) -> 0 | BJ51: =IF(AND(Tehniline!$B$46,Tehniline!$B39),-'Lehm ja ratsiooni tingimused'!$D$33,0) -> 0 | BK51: =IF(AND(Tehniline!$B$47,Tehniline!$B39),-'Lehm ja ratsiooni tingimused'!$D$33,0) -> 0 | BL51: =IF(AND(Tehniline!$B$48,Tehniline!$B39),-'Lehm ja ratsiooni tingimused'!$D$33,0) -> 0 | BM51: =IF(AND(Tehniline!$B$49,Tehniline!$B39),-'Lehm ja ratsiooni tingimused'!$D$33,0) -> 0 | BN51: =IF(AND(Tehniline!$B$50,Tehniline!$B39),-'Lehm ja ratsiooni tingimused'!$D$33,0) -> 0 | BO51: =IF(AND(Tehniline!$B$51,Tehniline!$B39),-'Lehm ja ratsiooni tingimused'!$D$33,0) -> 0 | BP51: =IF(AND(Tehniline!$B$52,Tehniline!$B39),-'Lehm ja ratsiooni tingimused'!$D$33,0) -> 0 | BQ51: =IF(AND(Tehniline!$B$53,Tehniline!$B39),-'Lehm ja ratsiooni tingimused'!$D$33,0) -> 0 | BR51: =IF(AND(Tehniline!$B$54,Tehniline!$B39),-'Lehm ja ratsiooni tingimused'!$D$33,0) -> 0 | BS51: =IF(AND(Tehniline!$B$55,Tehniline!$B39),-'Lehm ja ratsiooni tingimused'!$D$33,0) -> 0 | BT51: =IF(AND(Tehniline!$B$56,Tehniline!$B39),-'Lehm ja ratsiooni tingimused'!$D$33,0) -> 0
B52: Teraviljad | C52: Hernes 150-20/21 | D52: 0.15 | E52: 0.86 | F52: 13.7 | G52: 67 | H52: 123 | I52: 52 | J52: 52 | K52: 1.3 | L52: 1.3 | M52: 4.5 | N52: 250 | P52: 600 | Q52: 76 | R52: 116 | W52: 1 | X52: -0.5 | Y52: =0-'Lehm ja ratsiooni tingimused'!$D$32 -> -0.5 | AV52: =IF(AND(Tehniline!$B$32,Tehniline!$B40),-'Lehm ja ratsiooni tingimused'!$D$33,0) -> 0 | AW52: =IF(AND(Tehniline!$B$33,Tehniline!$B40),-'Lehm ja ratsiooni tingimused'!$D$33,0) -> 0 | AX52: =IF(AND(Tehniline!$B$34,Tehniline!$B40),-'Lehm ja ratsiooni tingimused'!$D$33,0) -> 0 | AY52: =IF(AND(Tehniline!$B$35,Tehniline!$B40),-'Lehm ja ratsiooni tingimused'!$D$33,0) -> 0 | AZ52: =IF(AND(Tehniline!$B$36,Tehniline!$B40),-'Lehm ja ratsiooni tingimused'!$D$33,0) -> 0 | BA52: =IF(AND(Tehniline!$B$37,Tehniline!$B40),-'Lehm ja ratsiooni tingimused'!$D$33,0) -> 0 | BB52: =IF(AND(Tehniline!$B$38,Tehniline!$B40),-'Lehm ja ratsiooni tingimused'!$D$33,0) -> 0 | BC52: =IF(AND(Tehniline!$B$39,Tehniline!$B40),-'Lehm ja ratsiooni tingimused'!$D$33,0) -> 0 | BD52: =1-'Lehm ja ratsiooni tingimused'!$D$33 -> 1 | BE52: =IF(AND(Tehniline!$B$41,Tehniline!$B40),-'Lehm ja ratsiooni tingimused'!$D$33,0) -> 0 | BF52: =IF(AND(Tehniline!$B$42,Tehniline!$B40),-'Lehm ja ratsiooni tingimused'!$D$33,0) -> 0 | BG52: =IF(AND(Tehniline!$B$43,Tehniline!$B40),-'Lehm ja ratsiooni tingimused'!$D$33,0) -> 0 | BH52: =IF(AND(Tehniline!$B$44,Tehniline!$B40),-'Lehm ja ratsiooni tingimused'!$D$33,0) -> 0 | BI52: =IF(AND(Tehniline!$B$45,Tehniline!$B40),-'Lehm ja ratsiooni tingimused'!$D$33,0) -> 0 | BJ52: =IF(AND(Tehniline!$B$46,Tehniline!$B40),-'Lehm ja ratsiooni tingimused'!$D$33,0) -> 0 | BK52: =IF(AND(Tehniline!$B$47,Tehniline!$B40),-'Lehm ja ratsiooni tingimused'!$D$33,0) -> 0 | BL52: =IF(AND(Tehniline!$B$48,Tehniline!$B40),-'Lehm ja ratsiooni tingimused'!$D$33,0) -> 0 | BM52: =IF(AND(Tehniline!$B$49,Tehniline!$B40),-'Lehm ja ratsiooni tingimused'!$D$33,0) -> 0 | BN52: =IF(AND(Tehniline!$B$50,Tehniline!$B40),-'Lehm ja ratsiooni tingimused'!$D$33,0) -> 0 | BO52: =IF(AND(Tehniline!$B$51,Tehniline!$B40),-'Lehm ja ratsiooni tingimused'!$D$33,0) -> 0 | BP52: =IF(AND(Tehniline!$B$52,Tehniline!$B40),-'Lehm ja ratsiooni tingimused'!$D$33,0) -> 0 | BQ52: =IF(AND(Tehniline!$B$53,Tehniline!$B40),-'Lehm ja ratsiooni tingimused'!$D$33,0) -> 0 | BR52: =IF(AND(Tehniline!$B$54,Tehniline!$B40),-'Lehm ja ratsiooni tingimused'!$D$33,0) -> 0 | BS52: =IF(AND(Tehniline!$B$55,Tehniline!$B40),-'Lehm ja ratsiooni tingimused'!$D$33,0) -> 0 | BT52: =IF(AND(Tehniline!$B$56,Tehniline!$B40),-'Lehm ja ratsiooni tingimused'!$D$33,0) -> 0
B53: Teraviljad | C53: Konservvili 2677 nisu | D53: 0.15 | E53: 0.634 | F53: 13.8 | G53: 40 | H53: 93 | I53: -59 | J53: -59 | K53: 0.9 | L53: 0.9 | M53: 3.9 | P53: 600 | W53: 1 | X53: -0.5 | Y53: =0-'Lehm ja ratsiooni tingimused'!$D$32 -> -0.5 | AV53: =IF(AND(Tehniline!$B$32,Tehniline!$B41),-'Lehm ja ratsiooni tingimused'!$D$33,0) -> 0 | AW53: =IF(AND(Tehniline!$B$33,Tehniline!$B41),-'Lehm ja ratsiooni tingimused'!$D$33,0) -> 0 | AX53: =IF(AND(Tehniline!$B$34,Tehniline!$B41),-'Lehm ja ratsiooni tingimused'!$D$33,0) -> 0 | AY53: =IF(AND(Tehniline!$B$35,Tehniline!$B41),-'Lehm ja ratsiooni tingimused'!$D$33,0) -> 0 | AZ53: =IF(AND(Tehniline!$B$36,Tehniline!$B41),-'Lehm ja ratsiooni tingimused'!$D$33,0) -> 0 | BA53: =IF(AND(Tehniline!$B$37,Tehniline!$B41),-'Lehm ja ratsiooni tingimused'!$D$33,0) -> 0 | BB53: =IF(AND(Tehniline!$B$38,Tehniline!$B41),-'Lehm ja ratsiooni tingimused'!$D$33,0) -> 0 | BC53: =IF(AND(Tehniline!$B$39,Tehniline!$B41),-'Lehm ja ratsiooni tingimused'!$D$33,0) -> 0 | BD53: =IF(AND(Tehniline!$B$40,Tehniline!$B41),-'Lehm ja ratsiooni tingimused'!$D$33,0) -> 0 | BE53: =1-'Lehm ja ratsiooni tingimused'!$D$33 -> 1 | BF53: =IF(AND(Tehniline!$B$42,Tehniline!$B41),-'Lehm ja ratsiooni tingimused'!$D$33,0) -> 0 | BG53: =IF(AND(Tehniline!$B$43,Tehniline!$B41),-'Lehm ja ratsiooni tingimused'!$D$33,0) -> 0 | BH53: =IF(AND(Tehniline!$B$44,Tehniline!$B41),-'Lehm ja ratsiooni tingimused'!$D$33,0) -> 0 | BI53: =IF(AND(Tehniline!$B$45,Tehniline!$B41),-'Lehm ja ratsiooni tingimused'!$D$33,0) -> 0 | BJ53: =IF(AND(Tehniline!$B$46,Tehniline!$B41),-'Lehm ja ratsiooni tingimused'!$D$33,0) -> 0 | BK53: =IF(AND(Tehniline!$B$47,Tehniline!$B41),-'Lehm ja ratsiooni tingimused'!$D$33,0) -> 0 | BL53: =IF(AND(Tehniline!$B$48,Tehniline!$B41),-'Lehm ja ratsiooni tingimused'!$D$33,0) -> 0 | BM53: =IF(AND(Tehniline!$B$49,Tehniline!$B41),-'Lehm ja ratsiooni tingimused'!$D$33,0) -> 0 | BN53: =IF(AND(Tehniline!$B$50,Tehniline!$B41),-'Lehm ja ratsiooni tingimused'!$D$33,0) -> 0 | BO53: =IF(AND(Tehniline!$B$51,Tehniline!$B41),-'Lehm ja ratsiooni tingimused'!$D$33,0) -> 0 | BP53: =IF(AND(Tehniline!$B$52,Tehniline!$B41),-'Lehm ja ratsiooni tingimused'!$D$33,0) -> 0 | BQ53: =IF(AND(Tehniline!$B$53,Tehniline!$B41),-'Lehm ja ratsiooni tingimused'!$D$33,0) -> 0 | BR53: =IF(AND(Tehniline!$B$54,Tehniline!$B41),-'Lehm ja ratsiooni tingimused'!$D$33,0) -> 0 | BS53: =IF(AND(Tehniline!$B$55,Tehniline!$B41),-'Lehm ja ratsiooni tingimused'!$D$33,0) -> 0 | BT53: =IF(AND(Tehniline!$B$56,Tehniline!$B41),-'Lehm ja ratsiooni tingimused'!$D$33,0) -> 0
B54: Teraviljad | C54: Muljutud konserveeritud kaer 250-22 | D54: 0.15 | E54: 0.65 | F54: 12 | G54: 117 | H54: 92 | I54: -18 | J54: -18 | K54: 1.2 | L54: 1.2 | M54: 3.5 | N54: 130 | P54: 630 | Q54: 137 | R54: 313 | W54: 1 | X54: -0.5 | Y54: =0-'Lehm ja ratsiooni tingimused'!$D$32 -> -0.5 | AV54: =IF(AND(Tehniline!$B$32,Tehniline!$B42),-'Lehm ja ratsiooni tingimused'!$D$33,0) -> 0 | AW54: =IF(AND(Tehniline!$B$33,Tehniline!$B42),-'Lehm ja ratsiooni tingimused'!$D$33,0) -> 0 | AX54: =IF(AND(Tehniline!$B$34,Tehniline!$B42),-'Lehm ja ratsiooni tingimused'!$D$33,0) -> 0 | AY54: =IF(AND(Tehniline!$B$35,Tehniline!$B42),-'Lehm ja ratsiooni tingimused'!$D$33,0) -> 0 | AZ54: =IF(AND(Tehniline!$B$36,Tehniline!$B42),-'Lehm ja ratsiooni tingimused'!$D$33,0) -> 0 | BA54: =IF(AND(Tehniline!$B$37,Tehniline!$B42),-'Lehm ja ratsiooni tingimused'!$D$33,0) -> 0 | BB54: =IF(AND(Tehniline!$B$38,Tehniline!$B42),-'Lehm ja ratsiooni tingimused'!$D$33,0) -> 0 | BC54: =IF(AND(Tehniline!$B$39,Tehniline!$B42),-'Lehm ja ratsiooni tingimused'!$D$33,0) -> 0 | BD54: =IF(AND(Tehniline!$B$40,Tehniline!$B42),-'Lehm ja ratsiooni tingimused'!$D$33,0) -> 0 | BE54: =IF(AND(Tehniline!$B$41,Tehniline!$B42),-'Lehm ja ratsiooni tingimused'!$D$33,0) -> 0 | BF54: =1-'Lehm ja ratsiooni tingimused'!$D$33 -> 1 | BG54: =IF(AND(Tehniline!$B$43,Tehniline!$B42),-'Lehm ja ratsiooni tingimused'!$D$33,0) -> 0 | BH54: =IF(AND(Tehniline!$B$44,Tehniline!$B42),-'Lehm ja ratsiooni tingimused'!$D$33,0) -> 0 | BI54: =IF(AND(Tehniline!$B$45,Tehniline!$B42),-'Lehm ja ratsiooni tingimused'!$D$33,0) -> 0 | BJ54: =IF(AND(Tehniline!$B$46,Tehniline!$B42),-'Lehm ja ratsiooni tingimused'!$D$33,0) -> 0 | BK54: =IF(AND(Tehniline!$B$47,Tehniline!$B42),-'Lehm ja ratsiooni tingimused'!$D$33,0) -> 0 | BL54: =IF(AND(Tehniline!$B$48,Tehniline!$B42),-'Lehm ja ratsiooni tingimused'!$D$33,0) -> 0 | BM54: =IF(AND(Tehniline!$B$49,Tehniline!$B42),-'Lehm ja ratsiooni tingimused'!$D$33,0) -> 0 | BN54: =IF(AND(Tehniline!$B$50,Tehniline!$B42),-'Lehm ja ratsiooni tingimused'!$D$33,0) -> 0 | BO54: =IF(AND(Tehniline!$B$51,Tehniline!$B42),-'Lehm ja ratsiooni tingimused'!$D$33,0) -> 0 | BP54: =IF(AND(Tehniline!$B$52,Tehniline!$B42),-'Lehm ja ratsiooni tingimused'!$D$33,0) -> 0 | BQ54: =IF(AND(Tehniline!$B$53,Tehniline!$B42),-'Lehm ja ratsiooni tingimused'!$D$33,0) -> 0 | BR54: =IF(AND(Tehniline!$B$54,Tehniline!$B42),-'Lehm ja ratsiooni tingimused'!$D$33,0) -> 0 | BS54: =IF(AND(Tehniline!$B$55,Tehniline!$B42),-'Lehm ja ratsiooni tingimused'!$D$33,0) -> 0 | BT54: =IF(AND(Tehniline!$B$56,Tehniline!$B42),-'Lehm ja ratsiooni tingimused'!$D$33,0) -> 0
B55: Teraviljad | C55: Muljutud konserveeritud oder 255-22 | D55: 0.15 | E55: 0.65 | F55: 12.9 | G55: 68 | H55: 102 | I55: -41 | J55: -41 | K55: 0.8 | L55: 0.8 | M55: 3.6 | N55: 126 | P55: 630 | Q55: 78 | R55: 235 | W55: 1 | X55: -0.5 | Y55: =0-'Lehm ja ratsiooni tingimused'!$D$32 -> -0.5 | AV55: =IF(AND(Tehniline!$B$32,Tehniline!$B43),-'Lehm ja ratsiooni tingimused'!$D$33,0) -> 0 | AW55: =IF(AND(Tehniline!$B$33,Tehniline!$B43),-'Lehm ja ratsiooni tingimused'!$D$33,0) -> 0 | AX55: =IF(AND(Tehniline!$B$34,Tehniline!$B43),-'Lehm ja ratsiooni tingimused'!$D$33,0) -> 0 | AY55: =IF(AND(Tehniline!$B$35,Tehniline!$B43),-'Lehm ja ratsiooni tingimused'!$D$33,0) -> 0 | AZ55: =IF(AND(Tehniline!$B$36,Tehniline!$B43),-'Lehm ja ratsiooni tingimused'!$D$33,0) -> 0 | BA55: =IF(AND(Tehniline!$B$37,Tehniline!$B43),-'Lehm ja ratsiooni tingimused'!$D$33,0) -> 0 | BB55: =IF(AND(Tehniline!$B$38,Tehniline!$B43),-'Lehm ja ratsiooni tingimused'!$D$33,0) -> 0 | BC55: =IF(AND(Tehniline!$B$39,Tehniline!$B43),-'Lehm ja ratsiooni tingimused'!$D$33,0) -> 0 | BD55: =IF(AND(Tehniline!$B$40,Tehniline!$B43),-'Lehm ja ratsiooni tingimused'!$D$33,0) -> 0 | BE55: =IF(AND(Tehniline!$B$41,Tehniline!$B43),-'Lehm ja ratsiooni tingimused'!$D$33,0) -> 0 | BF55: =IF(AND(Tehniline!$B$42,Tehniline!$B43),-'Lehm ja ratsiooni tingimused'!$D$33,0) -> 0 | BG55: =1-'Lehm ja ratsiooni tingimused'!$D$33 -> 1 | BH55: =IF(AND(Tehniline!$B$44,Tehniline!$B43),-'Lehm ja ratsiooni tingimused'!$D$33,0) -> 0 | BI55: =IF(AND(Tehniline!$B$45,Tehniline!$B43),-'Lehm ja ratsiooni tingimused'!$D$33,0) -> 0 | BJ55: =IF(AND(Tehniline!$B$46,Tehniline!$B43),-'Lehm ja ratsiooni tingimused'!$D$33,0) -> 0 | BK55: =IF(AND(Tehniline!$B$47,Tehniline!$B43),-'Lehm ja ratsiooni tingimused'!$D$33,0) -> 0 | BL55: =IF(AND(Tehniline!$B$48,Tehniline!$B43),-'Lehm ja ratsiooni tingimused'!$D$33,0) -> 0 | BM55: =IF(AND(Tehniline!$B$49,Tehniline!$B43),-'Lehm ja ratsiooni tingimused'!$D$33,0) -> 0 | BN55: =IF(AND(Tehniline!$B$50,Tehniline!$B43),-'Lehm ja ratsiooni tingimused'!$D$33,0) -> 0 | BO55: =IF(AND(Tehniline!$B$51,Tehniline!$B43),-'Lehm ja ratsiooni tingimused'!$D$33,0) -> 0 | BP55: =IF(AND(Tehniline!$B$52,Tehniline!$B43),-'Lehm ja ratsiooni tingimused'!$D$33,0) -> 0 | BQ55: =IF(AND(Tehniline!$B$53,Tehniline!$B43),-'Lehm ja ratsiooni tingimused'!$D$33,0) -> 0 | BR55: =IF(AND(Tehniline!$B$54,Tehniline!$B43),-'Lehm ja ratsiooni tingimused'!$D$33,0) -> 0 | BS55: =IF(AND(Tehniline!$B$55,Tehniline!$B43),-'Lehm ja ratsiooni tingimused'!$D$33,0) -> 0 | BT55: =IF(AND(Tehniline!$B$56,Tehniline!$B43),-'Lehm ja ratsiooni tingimused'!$D$33,0) -> 0
B56: Teraviljad | J56: 0 | L56: 0 | W56: 1 | X56: -0.5 | Y56: =0-'Lehm ja ratsiooni tingimused'!$D$32 -> -0.5 | AV56: =IF(AND(Tehniline!$B$32,Tehniline!$B44),-'Lehm ja ratsiooni tingimused'!$D$33,0) -> 0 | AW56: =IF(AND(Tehniline!$B$33,Tehniline!$B44),-'Lehm ja ratsiooni tingimused'!$D$33,0) -> 0 | AX56: =IF(AND(Tehniline!$B$34,Tehniline!$B44),-'Lehm ja ratsiooni tingimused'!$D$33,0) -> 0 | AY56: =IF(AND(Tehniline!$B$35,Tehniline!$B44),-'Lehm ja ratsiooni tingimused'!$D$33,0) -> 0 | AZ56: =IF(AND(Tehniline!$B$36,Tehniline!$B44),-'Lehm ja ratsiooni tingimused'!$D$33,0) -> 0 | BA56: =IF(AND(Tehniline!$B$37,Tehniline!$B44),-'Lehm ja ratsiooni tingimused'!$D$33,0) -> 0 | BB56: =IF(AND(Tehniline!$B$38,Tehniline!$B44),-'Lehm ja ratsiooni tingimused'!$D$33,0) -> 0 | BC56: =IF(AND(Tehniline!$B$39,Tehniline!$B44),-'Lehm ja ratsiooni tingimused'!$D$33,0) -> 0 | BD56: =IF(AND(Tehniline!$B$40,Tehniline!$B44),-'Lehm ja ratsiooni tingimused'!$D$33,0) -> 0 | BE56: =IF(AND(Tehniline!$B$41,Tehniline!$B44),-'Lehm ja ratsiooni tingimused'!$D$33,0) -> 0 | BF56: =IF(AND(Tehniline!$B$42,Tehniline!$B44),-'Lehm ja ratsiooni tingimused'!$D$33,0) -> 0 | BG56: =IF(AND(Tehniline!$B$43,Tehniline!$B44),-'Lehm ja ratsiooni tingimused'!$D$33,0) -> 0 | BH56: =1-'Lehm ja ratsiooni tingimused'!$D$33 -> 1 | BI56: =IF(AND(Tehniline!$B$45,Tehniline!$B44),-'Lehm ja ratsiooni tingimused'!$D$33,0) -> 0 | BJ56: =IF(AND(Tehniline!$B$46,Tehniline!$B44),-'Lehm ja ratsiooni tingimused'!$D$33,0) -> 0 | BK56: =IF(AND(Tehniline!$B$47,Tehniline!$B44),-'Lehm ja ratsiooni tingimused'!$D$33,0) -> 0 | BL56: =IF(AND(Tehniline!$B$48,Tehniline!$B44),-'Lehm ja ratsiooni tingimused'!$D$33,0) -> 0 | BM56: =IF(AND(Tehniline!$B$49,Tehniline!$B44),-'Lehm ja ratsiooni tingimused'!$D$33,0) -> 0 | BN56: =IF(AND(Tehniline!$B$50,Tehniline!$B44),-'Lehm ja ratsiooni tingimused'!$D$33,0) -> 0 | BO56: =IF(AND(Tehniline!$B$51,Tehniline!$B44),-'Lehm ja ratsiooni tingimused'!$D$33,0) -> 0 | BP56: =IF(AND(Tehniline!$B$52,Tehniline!$B44),-'Lehm ja ratsiooni tingimused'!$D$33,0) -> 0 | BQ56: =IF(AND(Tehniline!$B$53,Tehniline!$B44),-'Lehm ja ratsiooni tingimused'!$D$33,0) -> 0 | BR56: =IF(AND(Tehniline!$B$54,Tehniline!$B44),-'Lehm ja ratsiooni tingimused'!$D$33,0) -> 0 | BS56: =IF(AND(Tehniline!$B$55,Tehniline!$B44),-'Lehm ja ratsiooni tingimused'!$D$33,0) -> 0 | BT56: =IF(AND(Tehniline!$B$56,Tehniline!$B44),-'Lehm ja ratsiooni tingimused'!$D$33,0) -> 0
B57: Teraviljad | J57: 0 | L57: 0 | W57: 1 | X57: -0.5 | Y57: =0-'Lehm ja ratsiooni tingimused'!$D$32 -> -0.5 | AV57: =IF(AND(Tehniline!$B$32,Tehniline!$B45),-'Lehm ja ratsiooni tingimused'!$D$33,0) -> 0 | AW57: =IF(AND(Tehniline!$B$33,Tehniline!$B45),-'Lehm ja ratsiooni tingimused'!$D$33,0) -> 0 | AX57: =IF(AND(Tehniline!$B$34,Tehniline!$B45),-'Lehm ja ratsiooni tingimused'!$D$33,0) -> 0 | AY57: =IF(AND(Tehniline!$B$35,Tehniline!$B45),-'Lehm ja ratsiooni tingimused'!$D$33,0) -> 0 | AZ57: =IF(AND(Tehniline!$B$36,Tehniline!$B45),-'Lehm ja ratsiooni tingimused'!$D$33,0) -> 0 | BA57: =IF(AND(Tehniline!$B$37,Tehniline!$B45),-'Lehm ja ratsiooni tingimused'!$D$33,0) -> 0 | BB57: =IF(AND(Tehniline!$B$38,Tehniline!$B45),-'Lehm ja ratsiooni tingimused'!$D$33,0) -> 0 | BC57: =IF(AND(Tehniline!$B$39,Tehniline!$B45),-'Lehm ja ratsiooni tingimused'!$D$33,0) -> 0 | BD57: =IF(AND(Tehniline!$B$40,Tehniline!$B45),-'Lehm ja ratsiooni tingimused'!$D$33,0) -> 0 | BE57: =IF(AND(Tehniline!$B$41,Tehniline!$B45),-'Lehm ja ratsiooni tingimused'!$D$33,0) -> 0 | BF57: =IF(AND(Tehniline!$B$42,Tehniline!$B45),-'Lehm ja ratsiooni tingimused'!$D$33,0) -> 0 | BG57: =IF(AND(Tehniline!$B$43,Tehniline!$B45),-'Lehm ja ratsiooni tingimused'!$D$33,0) -> 0 | BH57: =IF(AND(Tehniline!$B$44,Tehniline!$B45),-'Lehm ja ratsiooni tingimused'!$D$33,0) -> 0 | BI57: =1-'Lehm ja ratsiooni tingimused'!$D$33 -> 1 | BJ57: =IF(AND(Tehniline!$B$46,Tehniline!$B45),-'Lehm ja ratsiooni tingimused'!$D$33,0) -> 0 | BK57: =IF(AND(Tehniline!$B$47,Tehniline!$B45),-'Lehm ja ratsiooni tingimused'!$D$33,0) -> 0 | BL57: =IF(AND(Tehniline!$B$48,Tehniline!$B45),-'Lehm ja ratsiooni tingimused'!$D$33,0) -> 0 | BM57: =IF(AND(Tehniline!$B$49,Tehniline!$B45),-'Lehm ja ratsiooni tingimused'!$D$33,0) -> 0 | BN57: =IF(AND(Tehniline!$B$50,Tehniline!$B45),-'Lehm ja ratsiooni tingimused'!$D$33,0) -> 0 | BO57: =IF(AND(Tehniline!$B$51,Tehniline!$B45),-'Lehm ja ratsiooni tingimused'!$D$33,0) -> 0 | BP57: =IF(AND(Tehniline!$B$52,Tehniline!$B45),-'Lehm ja ratsiooni tingimused'!$D$33,0) -> 0 | BQ57: =IF(AND(Tehniline!$B$53,Tehniline!$B45),-'Lehm ja ratsiooni tingimused'!$D$33,0) -> 0 | BR57: =IF(AND(Tehniline!$B$54,Tehniline!$B45),-'Lehm ja ratsiooni tingimused'!$D$33,0) -> 0 | BS57: =IF(AND(Tehniline!$B$55,Tehniline!$B45),-'Lehm ja ratsiooni tingimused'!$D$33,0) -> 0 | BT57: =IF(AND(Tehniline!$B$56,Tehniline!$B45),-'Lehm ja ratsiooni tingimused'!$D$33,0) -> 0
B58: Teraviljad | J58: 0 | L58: 0 | W58: 1 | X58: -0.5 | Y58: =0-'Lehm ja ratsiooni tingimused'!$D$32 -> -0.5 | AV58: =IF(AND(Tehniline!$B$32,Tehniline!$B46),-'Lehm ja ratsiooni tingimused'!$D$33,0) -> 0 | AW58: =IF(AND(Tehniline!$B$33,Tehniline!$B46),-'Lehm ja ratsiooni tingimused'!$D$33,0) -> 0 | AX58: =IF(AND(Tehniline!$B$34,Tehniline!$B46),-'Lehm ja ratsiooni tingimused'!$D$33,0) -> 0 | AY58: =IF(AND(Tehniline!$B$35,Tehniline!$B46),-'Lehm ja ratsiooni tingimused'!$D$33,0) -> 0 | AZ58: =IF(AND(Tehniline!$B$36,Tehniline!$B46),-'Lehm ja ratsiooni tingimused'!$D$33,0) -> 0 | BA58: =IF(AND(Tehniline!$B$37,Tehniline!$B46),-'Lehm ja ratsiooni tingimused'!$D$33,0) -> 0 | BB58: =IF(AND(Tehniline!$B$38,Tehniline!$B46),-'Lehm ja ratsiooni tingimused'!$D$33,0) -> 0 | BC58: =IF(AND(Tehniline!$B$39,Tehniline!$B46),-'Lehm ja ratsiooni tingimused'!$D$33,0) -> 0 | BD58: =IF(AND(Tehniline!$B$40,Tehniline!$B46),-'Lehm ja ratsiooni tingimused'!$D$33,0) -> 0 | BE58: =IF(AND(Tehniline!$B$41,Tehniline!$B46),-'Lehm ja ratsiooni tingimused'!$D$33,0) -> 0 | BF58: =IF(AND(Tehniline!$B$42,Tehniline!$B46),-'Lehm ja ratsiooni tingimused'!$D$33,0) -> 0 | BG58: =IF(AND(Tehniline!$B$43,Tehniline!$B46),-'Lehm ja ratsiooni tingimused'!$D$33,0) -> 0 | BH58: =IF(AND(Tehniline!$B$44,Tehniline!$B46),-'Lehm ja ratsiooni tingimused'!$D$33,0) -> 0 | BI58: =IF(AND(Tehniline!$B$45,Tehniline!$B46),-'Lehm ja ratsiooni tingimused'!$D$33,0) -> 0 | BJ58: =1-'Lehm ja ratsiooni tingimused'!$D$33 -> 1 | BK58: =IF(AND(Tehniline!$B$47,Tehniline!$B46),-'Lehm ja ratsiooni tingimused'!$D$33,0) -> 0 | BL58: =IF(AND(Tehniline!$B$48,Tehniline!$B46),-'Lehm ja ratsiooni tingimused'!$D$33,0) -> 0 | BM58: =IF(AND(Tehniline!$B$49,Tehniline!$B46),-'Lehm ja ratsiooni tingimused'!$D$33,0) -> 0 | BN58: =IF(AND(Tehniline!$B$50,Tehniline!$B46),-'Lehm ja ratsiooni tingimused'!$D$33,0) -> 0 | BO58: =IF(AND(Tehniline!$B$51,Tehniline!$B46),-'Lehm ja ratsiooni tingimused'!$D$33,0) -> 0 | BP58: =IF(AND(Tehniline!$B$52,Tehniline!$B46),-'Lehm ja ratsiooni tingimused'!$D$33,0) -> 0 | BQ58: =IF(AND(Tehniline!$B$53,Tehniline!$B46),-'Lehm ja ratsiooni tingimused'!$D$33,0) -> 0 | BR58: =IF(AND(Tehniline!$B$54,Tehniline!$B46),-'Lehm ja ratsiooni tingimused'!$D$33,0) -> 0 | BS58: =IF(AND(Tehniline!$B$55,Tehniline!$B46),-'Lehm ja ratsiooni tingimused'!$D$33,0) -> 0 | BT58: =IF(AND(Tehniline!$B$56,Tehniline!$B46),-'Lehm ja ratsiooni tingimused'!$D$33,0) -> 0
B59: Teraviljad | J59: 0 | L59: 0 | W59: 1 | X59: -0.5 | Y59: =0-'Lehm ja ratsiooni tingimused'!$D$32 -> -0.5 | AV59: =IF(AND(Tehniline!$B$32,Tehniline!$B47),-'Lehm ja ratsiooni tingimused'!$D$33,0) -> 0 | AW59: =IF(AND(Tehniline!$B$33,Tehniline!$B47),-'Lehm ja ratsiooni tingimused'!$D$33,0) -> 0 | AX59: =IF(AND(Tehniline!$B$34,Tehniline!$B47),-'Lehm ja ratsiooni tingimused'!$D$33,0) -> 0 | AY59: =IF(AND(Tehniline!$B$35,Tehniline!$B47),-'Lehm ja ratsiooni tingimused'!$D$33,0) -> 0 | AZ59: =IF(AND(Tehniline!$B$36,Tehniline!$B47),-'Lehm ja ratsiooni tingimused'!$D$33,0) -> 0 | BA59: =IF(AND(Tehniline!$B$37,Tehniline!$B47),-'Lehm ja ratsiooni tingimused'!$D$33,0) -> 0 | BB59: =IF(AND(Tehniline!$B$38,Tehniline!$B47),-'Lehm ja ratsiooni tingimused'!$D$33,0) -> 0 | BC59: =IF(AND(Tehniline!$B$39,Tehniline!$B47),-'Lehm ja ratsiooni tingimused'!$D$33,0) -> 0 | BD59: =IF(AND(Tehniline!$B$40,Tehniline!$B47),-'Lehm ja ratsiooni tingimused'!$D$33,0) -> 0 | BE59: =IF(AND(Tehniline!$B$41,Tehniline!$B47),-'Lehm ja ratsiooni tingimused'!$D$33,0) -> 0 | BF59: =IF(AND(Tehniline!$B$42,Tehniline!$B47),-'Lehm ja ratsiooni tingimused'!$D$33,0) -> 0 | BG59: =IF(AND(Tehniline!$B$43,Tehniline!$B47),-'Lehm ja ratsiooni tingimused'!$D$33,0) -> 0 | BH59: =IF(AND(Tehniline!$B$44,Tehniline!$B47),-'Lehm ja ratsiooni tingimused'!$D$33,0) -> 0 | BI59: =IF(AND(Tehniline!$B$45,Tehniline!$B47),-'Lehm ja ratsiooni tingimused'!$D$33,0) -> 0 | BJ59: =IF(AND(Tehniline!$B$46,Tehniline!$B47),-'Lehm ja ratsiooni tingimused'!$D$33,0) -> 0 | BK59: =1-'Lehm ja ratsiooni tingimused'!$D$33 -> 1 | BL59: =IF(AND(Tehniline!$B$48,Tehniline!$B47),-'Lehm ja ratsiooni tingimused'!$D$33,0) -> 0 | BM59: =IF(AND(Tehniline!$B$49,Tehniline!$B47),-'Lehm ja ratsiooni tingimused'!$D$33,0) -> 0 | BN59: =IF(AND(Tehniline!$B$50,Tehniline!$B47),-'Lehm ja ratsiooni tingimused'!$D$33,0) -> 0 | BO59: =IF(AND(Tehniline!$B$51,Tehniline!$B47),-'Lehm ja ratsiooni tingimused'!$D$33,0) -> 0 | BP59: =IF(AND(Tehniline!$B$52,Tehniline!$B47),-'Lehm ja ratsiooni tingimused'!$D$33,0) -> 0 | BQ59: =IF(AND(Tehniline!$B$53,Tehniline!$B47),-'Lehm ja ratsiooni tingimused'!$D$33,0) -> 0 | BR59: =IF(AND(Tehniline!$B$54,Tehniline!$B47),-'Lehm ja ratsiooni tingimused'!$D$33,0) -> 0 | BS59: =IF(AND(Tehniline!$B$55,Tehniline!$B47),-'Lehm ja ratsiooni tingimused'!$D$33,0) -> 0 | BT59: =IF(AND(Tehniline!$B$56,Tehniline!$B47),-'Lehm ja ratsiooni tingimused'!$D$33,0) -> 0
B60: Nisu | C60: Nisukliid 265-24 | D60: 0.15 | E60: 0.86 | F60: 11.2 | G60: 97 | H60: 92 | I60: 18 | J60: =I60 -> 18 | K60: 1.4 | L60: =K60 -> 1.4 | M60: 11 | N60: 167 | P60: 600 | W60: 1 | X60: -0.5 | Y60: =0-'Lehm ja ratsiooni tingimused'!$D$32 -> -0.5 | AV60: =IF(AND(Tehniline!$B$32,Tehniline!$B49),-'Lehm ja ratsiooni tingimused'!$D$33,0) -> 0 | AW60: =IF(AND(Tehniline!$B$33,Tehniline!$B49),-'Lehm ja ratsiooni tingimused'!$D$33,0) -> 0 | AX60: =IF(AND(Tehniline!$B$34,Tehniline!$B49),-'Lehm ja ratsiooni tingimused'!$D$33,0) -> 0 | AY60: =IF(AND(Tehniline!$B$35,Tehniline!$B49),-'Lehm ja ratsiooni tingimused'!$D$33,0) -> 0 | AZ60: =IF(AND(Tehniline!$B$36,Tehniline!$B49),-'Lehm ja ratsiooni tingimused'!$D$33,0) -> 0 | BA60: =IF(AND(Tehniline!$B$37,Tehniline!$B49),-'Lehm ja ratsiooni tingimused'!$D$33,0) -> 0 | BB60: =IF(AND(Tehniline!$B$38,Tehniline!$B49),-'Lehm ja ratsiooni tingimused'!$D$33,0) -> 0 | BC60: =IF(AND(Tehniline!$B$39,Tehniline!$B49),-'Lehm ja ratsiooni tingimused'!$D$33,0) -> 0 | BD60: =IF(AND(Tehniline!$B$40,Tehniline!$B49),-'Lehm ja ratsiooni tingimused'!$D$33,0) -> 0 | BE60: =IF(AND(Tehniline!$B$41,Tehniline!$B49),-'Lehm ja ratsiooni tingimused'!$D$33,0) -> 0 | BF60: =IF(AND(Tehniline!$B$42,Tehniline!$B49),-'Lehm ja ratsiooni tingimused'!$D$33,0) -> 0 | BG60: =IF(AND(Tehniline!$B$43,Tehniline!$B49),-'Lehm ja ratsiooni tingimused'!$D$33,0) -> 0 | BH60: =IF(AND(Tehniline!$B$44,Tehniline!$B49),-'Lehm ja ratsiooni tingimused'!$D$33,0) -> 0 | BI60: =IF(AND(Tehniline!$B$45,Tehniline!$B49),-'Lehm ja ratsiooni tingimused'!$D$33,0) -> 0 | BJ60: =IF(AND(Tehniline!$B$46,Tehniline!$B49),-'Lehm ja ratsiooni tingimused'!$D$33,0) -> 0 | BK60: =IF(AND(Tehniline!$B$47,Tehniline!$B49),-'Lehm ja ratsiooni tingimused'!$D$33,0) -> 0 | BL60: =IF(AND(Tehniline!$B$48,Tehniline!$B49),-'Lehm ja ratsiooni tingimused'!$D$33,0) -> 0 | BM60: =1-'Lehm ja ratsiooni tingimused'!$D$33 -> 1 | BN60: =IF(AND(Tehniline!$B$50,Tehniline!$B49),-'Lehm ja ratsiooni tingimused'!$D$33,0) -> 0 | BO60: =IF(AND(Tehniline!$B$51,Tehniline!$B49),-'Lehm ja ratsiooni tingimused'!$D$33,0) -> 0 | BP60: =IF(AND(Tehniline!$B$52,Tehniline!$B49),-'Lehm ja ratsiooni tingimused'!$D$33,0) -> 0 | BQ60: =IF(AND(Tehniline!$B$53,Tehniline!$B49),-'Lehm ja ratsiooni tingimused'!$D$33,0) -> 0 | BR60: =IF(AND(Tehniline!$B$54,Tehniline!$B49),-'Lehm ja ratsiooni tingimused'!$D$33,0) -> 0 | BS60: =IF(AND(Tehniline!$B$55,Tehniline!$B49),-'Lehm ja ratsiooni tingimused'!$D$33,0) -> 0 | BT60: =IF(AND(Tehniline!$B$56,Tehniline!$B49),-'Lehm ja ratsiooni tingimused'!$D$33,0) -> 0
B61: Nisu | C61: Nisu 265-20/21 | D61: 0.177 | E61: 0.86 | F61: 13.8 | G61: 25 | H61: 106 | I61: -28 | J61: -28 | K61: 0.6 | L61: 0.6 | M61: 3.8 | N61: 146 | P61: 650 | W61: 1 | X61: -0.5 | Y61: =1-'Lehm ja ratsiooni tingimused'!D32 -> 0.5 | AV61: =IF(AND(Tehniline!$B$32,Tehniline!$B50),-'Lehm ja ratsiooni tingimused'!$D$33,0) -> 0 | AW61: =IF(AND(Tehniline!$B$33,Tehniline!$B50),-'Lehm ja ratsiooni tingimused'!$D$33,0) -> 0 | AX61: =IF(AND(Tehniline!$B$34,Tehniline!$B50),-'Lehm ja ratsiooni tingimused'!$D$33,0) -> 0 | AY61: =IF(AND(Tehniline!$B$35,Tehniline!$B50),-'Lehm ja ratsiooni tingimused'!$D$33,0) -> 0 | AZ61: =IF(AND(Tehniline!$B$36,Tehniline!$B50),-'Lehm ja ratsiooni tingimused'!$D$33,0) -> 0 | BA61: =IF(AND(Tehniline!$B$37,Tehniline!$B50),-'Lehm ja ratsiooni tingimused'!$D$33,0) -> 0 | BB61: =IF(AND(Tehniline!$B$38,Tehniline!$B50),-'Lehm ja ratsiooni tingimused'!$D$33,0) -> 0 | BC61: =IF(AND(Tehniline!$B$39,Tehniline!$B50),-'Lehm ja ratsiooni tingimused'!$D$33,0) -> 0 | BD61: =IF(AND(Tehniline!$B$40,Tehniline!$B50),-'Lehm ja ratsiooni tingimused'!$D$33,0) -> 0 | BE61: =IF(AND(Tehniline!$B$41,Tehniline!$B50),-'Lehm ja ratsiooni tingimused'!$D$33,0) -> 0 | BF61: =IF(AND(Tehniline!$B$42,Tehniline!$B50),-'Lehm ja ratsiooni tingimused'!$D$33,0) -> 0 | BG61: =IF(AND(Tehniline!$B$43,Tehniline!$B50),-'Lehm ja ratsiooni tingimused'!$D$33,0) -> 0 | BH61: =IF(AND(Tehniline!$B$44,Tehniline!$B50),-'Lehm ja ratsiooni tingimused'!$D$33,0) -> 0 | BI61: =IF(AND(Tehniline!$B$45,Tehniline!$B50),-'Lehm ja ratsiooni tingimused'!$D$33,0) -> 0 | BJ61: =IF(AND(Tehniline!$B$46,Tehniline!$B50),-'Lehm ja ratsiooni tingimused'!$D$33,0) -> 0 | BK61: =IF(AND(Tehniline!$B$47,Tehniline!$B50),-'Lehm ja ratsiooni tingimused'!$D$33,0) -> 0 | BL61: =IF(AND(Tehniline!$B$48,Tehniline!$B50),-'Lehm ja ratsiooni tingimused'!$D$33,0) -> 0 | BM61: =IF(AND(Tehniline!$B$49,Tehniline!$B50),-'Lehm ja ratsiooni tingimused'!$D$33,0) -> 0 | BN61: =1-'Lehm ja ratsiooni tingimused'!$D$33 -> 1 | BO61: =IF(AND(Tehniline!$B$51,Tehniline!$B50),-'Lehm ja ratsiooni tingimused'!$D$33,0) -> 0 | BP61: =IF(AND(Tehniline!$B$52,Tehniline!$B50),-'Lehm ja ratsiooni tingimused'!$D$33,0) -> 0 | BQ61: =IF(AND(Tehniline!$B$53,Tehniline!$B50),-'Lehm ja ratsiooni tingimused'!$D$33,0) -> 0 | BR61: =IF(AND(Tehniline!$B$54,Tehniline!$B50),-'Lehm ja ratsiooni tingimused'!$D$33,0) -> 0 | BS61: =IF(AND(Tehniline!$B$55,Tehniline!$B50),-'Lehm ja ratsiooni tingimused'!$D$33,0) -> 0 | BT61: =IF(AND(Tehniline!$B$56,Tehniline!$B50),-'Lehm ja ratsiooni tingimused'!$D$33,0) -> 0
B62: Nisu | J62: 0 | L62: 0 | AV62: =IF(AND(Tehniline!$B$32,Tehniline!$B51),-'Lehm ja ratsiooni tingimused'!$D$33,0) -> 0 | AW62: =IF(AND(Tehniline!$B$33,Tehniline!$B51),-'Lehm ja ratsiooni tingimused'!$D$33,0) -> 0 | AX62: =IF(AND(Tehniline!$B$34,Tehniline!$B51),-'Lehm ja ratsiooni tingimused'!$D$33,0) -> 0 | AY62: =IF(AND(Tehniline!$B$35,Tehniline!$B51),-'Lehm ja ratsiooni tingimused'!$D$33,0) -> 0 | AZ62: =IF(AND(Tehniline!$B$36,Tehniline!$B51),-'Lehm ja ratsiooni tingimused'!$D$33,0) -> 0 | BA62: =IF(AND(Tehniline!$B$37,Tehniline!$B51),-'Lehm ja ratsiooni tingimused'!$D$33,0) -> 0 | BB62: =IF(AND(Tehniline!$B$38,Tehniline!$B51),-'Lehm ja ratsiooni tingimused'!$D$33,0) -> 0 | BC62: =IF(AND(Tehniline!$B$39,Tehniline!$B51),-'Lehm ja ratsiooni tingimused'!$D$33,0) -> 0 | BD62: =IF(AND(Tehniline!$B$40,Tehniline!$B51),-'Lehm ja ratsiooni tingimused'!$D$33,0) -> 0 | BE62: =IF(AND(Tehniline!$B$41,Tehniline!$B51),-'Lehm ja ratsiooni tingimused'!$D$33,0) -> 0 | BF62: =IF(AND(Tehniline!$B$42,Tehniline!$B51),-'Lehm ja ratsiooni tingimused'!$D$33,0) -> 0 | BG62: =IF(AND(Tehniline!$B$43,Tehniline!$B51),-'Lehm ja ratsiooni tingimused'!$D$33,0) -> 0 | BH62: =IF(AND(Tehniline!$B$44,Tehniline!$B51),-'Lehm ja ratsiooni tingimused'!$D$33,0) -> 0 | BI62: =IF(AND(Tehniline!$B$45,Tehniline!$B51),-'Lehm ja ratsiooni tingimused'!$D$33,0) -> 0 | BJ62: =IF(AND(Tehniline!$B$46,Tehniline!$B51),-'Lehm ja ratsiooni tingimused'!$D$33,0) -> 0 | BK62: =IF(AND(Tehniline!$B$47,Tehniline!$B51),-'Lehm ja ratsiooni tingimused'!$D$33,0) -> 0 | BL62: =IF(AND(Tehniline!$B$48,Tehniline!$B51),-'Lehm ja ratsiooni tingimused'!$D$33,0) -> 0 | BM62: =IF(AND(Tehniline!$B$49,Tehniline!$B51),-'Lehm ja ratsiooni tingimused'!$D$33,0) -> 0 | BN62: =IF(AND(Tehniline!$B$50,Tehniline!$B51),-'Lehm ja ratsiooni tingimused'!$D$33,0) -> 0 | BO62: =1-'Lehm ja ratsiooni tingimused'!$D$33 -> 1 | BP62: =IF(AND(Tehniline!$B$52,Tehniline!$B51),-'Lehm ja ratsiooni tingimused'!$D$33,0) -> 0 | BQ62: =IF(AND(Tehniline!$B$53,Tehniline!$B51),-'Lehm ja ratsiooni tingimused'!$D$33,0) -> 0 | BR62: =IF(AND(Tehniline!$B$54,Tehniline!$B51),-'Lehm ja ratsiooni tingimused'!$D$33,0) -> 0 | BS62: =IF(AND(Tehniline!$B$55,Tehniline!$B51),-'Lehm ja ratsiooni tingimused'!$D$33,0) -> 0 | BT62: =IF(AND(Tehniline!$B$56,Tehniline!$B51),-'Lehm ja ratsiooni tingimused'!$D$33,0) -> 0
B63: Nisu | J63: 0 | L63: 0 | AV63: =IF(AND(Tehniline!$B$32,Tehniline!$B52),-'Lehm ja ratsiooni tingimused'!$D$33,0) -> 0 | AW63: =IF(AND(Tehniline!$B$33,Tehniline!$B52),-'Lehm ja ratsiooni tingimused'!$D$33,0) -> 0 | AX63: =IF(AND(Tehniline!$B$34,Tehniline!$B52),-'Lehm ja ratsiooni tingimused'!$D$33,0) -> 0 | AY63: =IF(AND(Tehniline!$B$35,Tehniline!$B52),-'Lehm ja ratsiooni tingimused'!$D$33,0) -> 0 | AZ63: =IF(AND(Tehniline!$B$36,Tehniline!$B52),-'Lehm ja ratsiooni tingimused'!$D$33,0) -> 0 | BA63: =IF(AND(Tehniline!$B$37,Tehniline!$B52),-'Lehm ja ratsiooni tingimused'!$D$33,0) -> 0 | BB63: =IF(AND(Tehniline!$B$38,Tehniline!$B52),-'Lehm ja ratsiooni tingimused'!$D$33,0) -> 0 | BC63: =IF(AND(Tehniline!$B$39,Tehniline!$B52),-'Lehm ja ratsiooni tingimused'!$D$33,0) -> 0 | BD63: =IF(AND(Tehniline!$B$40,Tehniline!$B52),-'Lehm ja ratsiooni tingimused'!$D$33,0) -> 0 | BE63: =IF(AND(Tehniline!$B$41,Tehniline!$B52),-'Lehm ja ratsiooni tingimused'!$D$33,0) -> 0 | BF63: =IF(AND(Tehniline!$B$42,Tehniline!$B52),-'Lehm ja ratsiooni tingimused'!$D$33,0) -> 0 | BG63: =IF(AND(Tehniline!$B$43,Tehniline!$B52),-'Lehm ja ratsiooni tingimused'!$D$33,0) -> 0 | BH63: =IF(AND(Tehniline!$B$44,Tehniline!$B52),-'Lehm ja ratsiooni tingimused'!$D$33,0) -> 0 | BI63: =IF(AND(Tehniline!$B$45,Tehniline!$B52),-'Lehm ja ratsiooni tingimused'!$D$33,0) -> 0 | BJ63: =IF(AND(Tehniline!$B$46,Tehniline!$B52),-'Lehm ja ratsiooni tingimused'!$D$33,0) -> 0 | BK63: =IF(AND(Tehniline!$B$47,Tehniline!$B52),-'Lehm ja ratsiooni tingimused'!$D$33,0) -> 0 | BL63: =IF(AND(Tehniline!$B$48,Tehniline!$B52),-'Lehm ja ratsiooni tingimused'!$D$33,0) -> 0 | BM63: =IF(AND(Tehniline!$B$49,Tehniline!$B52),-'Lehm ja ratsiooni tingimused'!$D$33,0) -> 0 | BN63: =IF(AND(Tehniline!$B$50,Tehniline!$B52),-'Lehm ja ratsiooni tingimused'!$D$33,0) -> 0 | BO63: =IF(AND(Tehniline!$B$51,Tehniline!$B52),-'Lehm ja ratsiooni tingimused'!$D$33,0) -> 0 | BP63: =1-'Lehm ja ratsiooni tingimused'!$D$33 -> 1 | BQ63: =IF(AND(Tehniline!$B$53,Tehniline!$B52),-'Lehm ja ratsiooni tingimused'!$D$33,0) -> 0 | BR63: =IF(AND(Tehniline!$B$54,Tehniline!$B52),-'Lehm ja ratsiooni tingimused'!$D$33,0) -> 0 | BS63: =IF(AND(Tehniline!$B$55,Tehniline!$B52),-'Lehm ja ratsiooni tingimused'!$D$33,0) -> 0 | BT63: =IF(AND(Tehniline!$B$56,Tehniline!$B52),-'Lehm ja ratsiooni tingimused'!$D$33,0) -> 0
B64: Mineraalid | C64: Mineraal1 | D64: 0.05 | E64: 0.99 | J64: 0 | K64: 140 | L64: 140 | M64: 40 | AB64: 1
B65: Mineraalid | C65: Mineraal2 | D65: 0.05 | E65: 0.99 | J65: 0 | K65: 150 | L65: 150 | M65: 75 | AB65: 1
B66: Mineraalid | C66: Lubjakivi | D66: 0.01 | E66: 0.99 | J66: 0 | K66: 360 | L66: 360 | AC66: 1
B67: Mineraalid | C67: Panto | D67: 0.95 | E67: 0.99 | J67: 0 | K67: 185 | L67: 185 | M67: 40 | AA67: 1
B68: Mineraalid | C68: Mineraal 3 | D68: 0.72 | E68: 0.99 | J68: 0 | K68: 175 | L68: 175 | M68: 75
B69: Mineraalid | C69: Sooda | D69: 0.343 | E69: 0.99 | J69: 0 | L69: 0
B70: Mineraalid | C70: Karbamiid | D70: 0.295 | E70: 0.99 | I70: 2625 | J70: 2625 | L70: 0 | N70: 2625
B71: Mineraalid | C71: Mineraal 4 | D71: 1.315 | E71: 0.99 | J71: 0 | K71: 175 | L71: 175 | M71: 20
B72: Mineraalid | J72: 0 | L72: 0
B73: Rasv | C73: Kaitstud rasv | D73: 1.13 | E73: 0.99 | F73: 32 | J73: 0 | L73: 0 | AE73: 1
B74: Lisasööt1 | AF74: 1
B75: Lisasööt1 | J75: 0 | L75: 0 | AF75: 1
B76: Lisasööt1 | J76: 0 | L76: 0 | AF76: 1
B77: Lisasööt1 | J77: 0 | L77: 0 | AF77: 1
B78: Lisasööt1 | J78: 0 | L78: 0 | AF78: 1
B79: Lisasööt2 | C79: sööda nimi 2 | J79: 0 | L79: 0 | AG79: 1
B80: Lisasööt2 | J80: 0 | L80: 0 | AG80: 1
B81: Lisasööt2 | J81: 0 | L81: 0 | AG81: 1
B82: Lisasööt2 | J82: 0 | L82: 0 | AG82: 1
B83: Lisasööt2 | J83: 0 | L83: 0 | AG83: 1
B84: Vesi | C84: Töötlemata joogivesi | D84: 0.001 | E84: 0.01 | J84: 0 | L84: 0 | AU84: 1

Sheet Kontsentratsioonimäärad
A1: Piimatoodang, kg/päev | B1: 20 | C1: 22 | D1: 24 | E1: 26 | F1: 28 | G1: 30 | H1: 32 | I1: 34 | J1: 36 | K1: 38 | L1: 40 | M1: 42 | N1: 44 | O1: 46 | P1: 48 | Q1: 50 | R1: 52 | S1: 54 | T1: 56 | U1: 58 | V1: 60 | X1: 0…30 päeva
A2: ME, MJ min | B2: 9.73024449 | C2: 9.79532319 | D2: 9.864058573 | E2: 9.93645064 | F2: 10.01249939 | G2: 10.09220483 | H2: 10.17556695 | I2: 10.26258575 | J2: 10.35326124 | K2: 10.44759341 | L2: 10.54558226 | M2: 10.6472278 | N2: 10.75253003 | O2: 10.86148893 | P2: 10.97410453 | Q2: 11.0903768 | R2: 11.21030576 | S2: 11.33389141 | T2: 11.46113373 | U2: 11.59203274 | V2: 11.72658844
A3: TK, g/kg KA min | B3: 172.5 | C3: 171.5 | D3: 170.5 | E3: 169.5 | F3: 168.5 | G3: 167.5 | H3: 166.5 | I3: 165.5 | J3: 164.4 | K3: 163.2 | L3: 162 | M3: 160.8 | N3: 159.6 | O3: 158.4 | P3: 157.2 | Q3: 156 | R3: 154.8 | S3: 153.6 | T3: 152.4 | U3: 151.2 | V3: 150
A4: MP, g | B4: 83.65232358 | C4: 84.87183673 | D4: 85.91304348 | E4: 86.80088823 | F4: 87.55586987 | G4: 88.19498984 | H4: 88.78181818 | I4: 89.27510917 | J4: 89.82232893 | K4: 90.50549451 | L4: 91.140625 | M4: 92.08008658 | N4: 92.96428571 | O4: 94.13415259 | P4: 94.91488303 | Q4: 100.777551 | R4: 100.6719212 | S4: 100.909699 | T4: 100.8062876 | U4: 100.7093596 | V4: 100.825784
A5: VPB, min, g | B5: 0 | C5: 0 | D5: 0 | E5: 0 | F5: 0 | G5: 0 | H5: 0 | I5: 0 | J5: 0 | K5: 0 | L5: 0 | M5: 0 | N5: 0 | O5: 0 | P5: 0 | Q5: 0 | R5: 0 | S5: 0 | T5: 0 | U5: 0 | V5: 0
A6: VPB,max, g | B6: 10 | C6: 10 | D6: 10 | E6: 10 | F6: 10 | G6: 10 | H6: 10 | I6: 10 | J6: 10 | K6: 10 | L6: 10 | M6: 10 | N6: 10 | O6: 10 | P6: 10 | Q6: 10 | R6: 10 | S6: 10 | T6: 10 | U6: 10 | V6: 10
A7: Ca, g min | B7: 6.901747836 | C7: 6.96917505 | D7: 7.030006124 | E7: 7.085163833 | F7: 7.135406498 | G7: 7.18136306 | H7: 7.223559539 | I7: 7.262439264 | J7: 7.298378506 | K7: 7.331698694 | L7: 7.362676056 | M7: 7.419547589 | N7: 7.473073737 | O7: 7.550507345 | P7: 7.597585513 | Q7: 8.051509054 | R7: 8.028751821 | S7: 8.034292713 | T7: 8.013491955 | U7: 7.99399532 | V7: 8
A8: Ca, g max | B8: 8.282097404 | C8: 8.36301006 | D8: 8.436007348 | E8: 8.502196599 | F8: 8.562487798 | G8: 8.617635672 | H8: 8.668271447 | I8: 8.714927117 | J8: 8.758054208 | K8: 8.798038433 | L8: 8.835211268 | M8: 8.903457106 | N8: 8.967688484 | O8: 9.060608814 | P8: 9.117102616 | Q8: 9.661810865 | R8: 9.634502186 | S8: 9.641151255 | T8: 9.616190346 | U8: 9.592794384 | V8: 9.6
A9: P, g | B9: 4.774526678 | C9: 4.777142857 | D9: 4.779503106 | E9: 4.781643227 | F9: 4.783592645 | G9: 4.785375762 | H9: 4.787012987 | I9: 4.788521522 | J9: 4.789915966 | K9: 4.791208791 | L9: 4.792410714 | M9: 4.811688312 | N9: 4.829831933 | O9: 4.864311316 | P9: 4.880039821 | Q9: 5.157142857 | R9: 5.129064039 | S9: 5.119923555 | T9: 5.094775774 | U9: 5.071204657 | V9: 5.06445993
A10: Proteiin, g | B10: 126.8817922 | C10: 130.633296 | D10: 134.2877153 | E10: 137.8450502 | F10: 141.3053005 | G10: 144.6684664 | H10: 147.9345477 | I10: 151.1035446 | J10: 154.175457 | K10: 157.1502849 | L10: 160.0280283 | M10: 162.8086872 | N10: 165.4922617 | O10: 168.0787516 | P10: 170.5681571 | Q10: 172.960478 | R10: 175.2557145 | S10: 177.4538665 | T10: 179.554934 | U10: 181.5589171 | V10: 183.4658156
A11: Vaba - reserveering
A12: ME, MJ min | B12: 10.1532986 | C12: 10.22120681 | D12: 10.29293068 | E12: 10.36847023 | F12: 10.44782545 | G12: 10.53099634 | H12: 10.6179829 | I12: 10.70878513 | J12: 10.80340303 | K12: 10.9018366 | L12: 11.00408584 | M12: 11.11015075 | N12: 11.22003133 | O12: 11.33372758 | P12: 11.45123951 | Q12: 11.5725671 | R12: 11.69771036 | S12: 11.82666929 | T12: 11.9594439 | U12: 12.09603417 | V12: 12.23644011 | X12: Laktatsiooni I pool
A13: TK, g/kg KA min | B13: 142.0588235 | C13: 141.2352941 | D13: 140.4117647 | E13: 139.5882353 | F13: 138.7647059 | G13: 137.9411765 | H13: 137.1176471 | I13: 136.2941176 | J13: 135.3882353 | K13: 134.4 | L13: 133.4117647 | M13: 132.4235294 | N13: 131.4352941 | O13: 130.4470588 | P13: 129.4588235 | Q13: 128.4705882 | R13: 127.4823529 | S13: 126.4941176 | T13: 125.5058824 | U13: 124.5176471 | V13: 123.5294118
A14: MP, g | B14: 81.5958349 | C14: 82.03996993 | D14: 82.51821674 | E14: 83.03057532 | F14: 83.57704567 | G14: 84.1576278 | H14: 84.7723217 | I14: 85.42112737 | J14: 86.10404482 | K14: 86.82107405 | L14: 87.57221505 | M14: 88.35746782 | N14: 89.17683237 | O14: 90.03030869 | P14: 90.91789679 | Q14: 91.83959666 | R14: 92.79540831 | S14: 93.78533173 | T14: 94.80936692 | U14: 95.86751389 | V14: 96.95977263
A15: VPB, min, g | B15: 0 | C15: 0 | D15: 0 | E15: 0 | F15: 0 | G15: 0 | H15: 0 | I15: 0 | J15: 0 | K15: 0 | L15: 0 | M15: 0 | N15: 0 | O15: 0 | P15: 0 | Q15: 0 | R15: 0 | S15: 0 | T15: 0 | U15: 0 | V15: 0
A16: VPB,max, g | B16: 10 | C16: 10 | D16: 10 | E16: 10 | F16: 10 | G16: 10 | H16: 10 | I16: 10 | J16: 10 | K16: 10 | L16: 10 | M16: 10 | N16: 10 | O16: 10 | P16: 10 | Q16: 10 | R16: 10 | S16: 10 | T16: 10 | U16: 10 | V16: 10
A17: Ca, g min | B17: 6.901747836 | C17: 6.96917505 | D17: 7.030006124 | E17: 7.085163833 | F17: 7.135406498 | G17: 7.18136306 | H17: 7.223559539 | I17: 7.262439264 | J17: 7.298378506 | K17: 7.331698694 | L17: 7.362676056 | M17: 7.419547589 | N17: 7.473073737 | O17: 7.550507345 | P17: 7.597585513 | Q17: 8.051509054 | R17: 8.028751821 | S17: 8.034292713 | T17: 8.013491955 | U17: 7.99399532 | V17: 8
A18: Ca, g max | B18: 8.282097404 | C18: 8.36301006 | D18: 8.436007348 | E18: 8.502196599 | F18: 8.562487798 | G18: 8.617635672 | H18: 8.668271447 | I18: 8.714927117 | J18: 8.758054208 | K18: 8.798038433 | L18: 8.835211268 | M18: 8.903457106 | N18: 8.967688484 | O18: 9.060608814 | P18: 9.117102616 | Q18: 9.661810865 | R18: 9.634502186 | S18: 9.641151255 | T18: 9.616190346 | U18: 9.592794384 | V18: 9.6
A19: P, g | B19: 4.774526678 | C19: 4.777142857 | D19: 4.779503106 | E19: 4.781643227 | F19: 4.783592645 | G19: 4.785375762 | H19: 4.787012987 | I19: 4.788521522 | J19: 4.789915966 | K19: 4.791208791 | L19: 4.792410714 | M19: 4.811688312 | N19: 4.829831933 | O19: 4.864311316 | P19: 4.880039821 | Q19: 5.157142857 | R19: 5.129064039 | S19: 5.119923555 | T19: 5.094775774 | U19: 5.071204657 | V19: 5.06445993
A20: Proteiin, g | B20: 130.5069863 | C20: 134.3656759 | D20: 138.1245072 | E20: 141.7834802 | F20: 145.3425948 | G20: 148.8018511 | H20: 152.1612491 | I20: 155.4207887 | J20: 158.58047 | K20: 161.640293 | L20: 164.6002577 | M20: 167.460364 | N20: 170.220612 | O20: 172.8810017 | P20: 175.441533 | Q20: 177.902206 | R20: 180.2630207 | S20: 182.523977 | T20: 184.685075 | U20: 186.7463147 | V20: 188.707696
A21: Vaba - reserveering
A22: ME, MJ min | B22: 9.203476952 | C22: 9.405085554 | D22: 9.592668695 | E22: 9.767640758 | F22: 9.931232132 | G22: 10.0845182 | H22: 10.22844298 | I22: 10.36383862 | J22: 10.49144146 | K22: 10.64953635 | L22: 10.76242031 | M22: 10.8693235 | N22: 11.00542639 | O22: 11.10083714 | P22: 11.19156502 | Q22: 11.31016926 | R22: 11.39175569 | S22: 11.50036199 | T22: 11.60411426 | U22: 11.67392546 | V22: 11.76952636 | X22: Laktatsiooni II pool
A23: TK, g/kg KA min | B23: 172.5 | C23: 171.5 | D23: 170.5 | E23: 169.5 | F23: 168.5 | G23: 167.5 | H23: 166.5 | I23: 165.5 | J23: 164.4 | K23: 163.2 | L23: 162 | M23: 160.8 | N23: 159.6 | O23: 158.4 | P23: 157.2 | Q23: 156 | R23: 154.8 | S23: 153.6 | T23: 152.4 | U23: 151.2 | V23: 150
A24: MP, g | B24: 91.95869191 | C24: 92.75102041 | D24: 93.4068323 | E24: 93.94522576 | F24: 94.38189533 | G24: 94.72985782 | H24: 95.04935065 | I24: 95.2963194 | J24: 95.61584634 | K24: 96.08791209 | L24: 96.52678571 | M24: 97.34415584 | N24: 98.07352941 | O24: 99.11520737 | P24: 99.75709308 | Q24: 105.7408163 | R24: 105.4640394 | S24: 105.5575729 | T24: 105.3037448 | U24: 105.0658307 | V24: 105.1620209
A25: VPB, min, g | B25: 0 | C25: 0 | D25: 0 | E25: 0 | F25: 0 | G25: 0 | H25: 0 | I25: 0 | J25: 0 | K25: 0 | L25: 0 | M25: 0 | N25: 0 | O25: 0 | P25: 0 | Q25: 0 | R25: 0 | S25: 0 | T25: 0 | U25: 0 | V25: 0
A26: VPB,max, g | B26: 10 | C26: 10 | D26: 10 | E26: 10 | F26: 10 | G26: 10 | H26: 10 | I26: 10 | J26: 10 | K26: 10 | L26: 10 | M26: 10 | N26: 10 | O26: 10 | P26: 10 | Q26: 10 | R26: 10 | S26: 10 | T26: 10 | U26: 10 | V26: 10
A27: Ca, g min | B27: 5.176310877 | C27: 5.226881288 | D27: 5.272504593 | E27: 5.313872875 | F27: 5.351554874 | G27: 5.386022295 | H27: 5.417669654 | I27: 5.446829448 | J27: 5.47378388 | K27: 5.498774021 | L27: 5.522007042 | M27: 5.564660691 | N27: 5.604805302 | O27: 5.662880509 | P27: 5.698189135 | Q27: 6.038631791 | R27: 6.021563866 | S27: 6.025719535 | T27: 6.010118966 | U27: 5.99549649 | V27: 6
A28: Ca, g max | B28: 6.211573053 | C28: 6.272257545 | D28: 6.327005511 | E28: 6.376647449 | F28: 6.421865849 | G28: 6.463226754 | H28: 6.501203585 | I28: 6.536195338 | J28: 6.568540656 | K28: 6.598528825 | L28: 6.626408451 | M28: 6.67759283 | N28: 6.725766363 | O28: 6.795456611 | P28: 6.837826962 | Q28: 7.246358149 | R28: 7.225876639 | S28: 7.230863442 | T28: 7.212142759 | U28: 7.194595788 | V28: 7.2
A29: P, g | B29: 3.819621343 | C29: 3.821714286 | D29: 3.823602484 | E29: 3.825314582 | F29: 3.826874116 | G29: 3.828300609 | H29: 3.82961039 | I29: 3.830817218 | J29: 3.831932773 | K29: 3.832967033 | L29: 3.833928571 | M29: 3.849350649 | N29: 3.863865546 | O29: 3.891449053 | P29: 3.904031857 | Q29: 4.125714286 | R29: 4.103251232 | S29: 4.095938844 | T29: 4.07582062 | U29: 4.056963726 | V29: 4.051567944
A30: Proteiin, g | B30: 116.00621 | C30: 119.4361564 | D30: 122.7773397 | E30: 126.0297602 | F30: 129.1934176 | G30: 132.2683121 | H30: 135.2544436 | I30: 138.1518122 | J30: 140.9604178 | K30: 143.6802605 | L30: 146.3113402 | M30: 148.8536569 | N30: 151.3072107 | O30: 153.6720015 | P30: 155.9480293 | Q30: 158.1352942 | R30: 160.2337961 | S30: 162.2435351 | T30: 164.1645111 | U30: 165.9967242 | V30: 167.7401743
A31: Vaba - reserveering
A32: ME, MJ min | B32: 9 | C32: 9 | D32: 9 | E32: 9 | F32: 9 | G32: 9 | H32: 9 | I32: 9 | J32: 9 | K32: 9 | L32: 9 | M32: 9 | N32: 9 | O32: 9 | P32: 9 | Q32: 9 | R32: 9 | S32: 9 | T32: 9 | U32: 9 | V32: 9 | X32: Kinnislehmad
A33: TK, g/kg KA min | B33: 220 | C33: 220 | D33: 220 | E33: 220 | F33: 220 | G33: 220 | H33: 220 | I33: 220 | J33: 220 | K33: 220 | L33: 220 | M33: 220 | N33: 220 | O33: 220 | P33: 220 | Q33: 220 | R33: 220 | S33: 220 | T33: 220 | U33: 220 | V33: 220
A34: MP, g | B34: 70 | C34: 70 | D34: 70 | E34: 70 | F34: 70 | G34: 70 | H34: 70 | I34: 70 | J34: 70 | K34: 70 | L34: 70 | M34: 70 | N34: 70 | O34: 70 | P34: 70 | Q34: 70 | R34: 70 | S34: 70 | T34: 70 | U34: 70 | V34: 70
A35: VPB, min, g | B35: -10 | C35: -10 | D35: -10 | E35: -10 | F35: -10 | G35: -10 | H35: -10 | I35: -10 | J35: -10 | K35: -10 | L35: -10 | M35: -10 | N35: -10 | O35: -10 | P35: -10 | Q35: -10 | R35: -10 | S35: -10 | T35: -10 | U35: -10 | V35: -10
A36: VPB,max, g | B36: 10 | C36: 10 | D36: 10 | E36: 10 | F36: 10 | G36: 10 | H36: 10 | I36: 10 | J36: 10 | K36: 10 | L36: 10 | M36: 10 | N36: 10 | O36: 10 | P36: 10 | Q36: 10 | R36: 10 | S36: 10 | T36: 10 | U36: 10 | V36: 10
A37: Ca, g min | B37: 4.5 | C37: 4.5 | D37: 4.5 | E37: 4.5 | F37: 4.5 | G37: 4.5 | H37: 4.5 | I37: 4.5 | J37: 4.5 | K37: 4.5 | L37: 4.5 | M37: 4.5 | N37: 4.5 | O37: 4.5 | P37: 4.5 | Q37: 4.5 | R37: 4.5 | S37: 4.5 | T37: 4.5 | U37: 4.5 | V37: 4.5
A38: Ca, g max | B38: 5.5 | C38: 5.5 | D38: 5.5 | E38: 5.5 | F38: 5.5 | G38: 5.5 | H38: 5.5 | I38: 5.5 | J38: 5.5 | K38: 5.5 | L38: 5.5 | M38: 5.5 | N38: 5.5 | O38: 5.5 | P38: 5.5 | Q38: 5.5 | R38: 5.5 | S38: 5.5 | T38: 5.5 | U38: 5.5 | V38: 5.5
A39: P, g | B39: 3 | C39: 3 | D39: 3 | E39: 3 | F39: 3 | G39: 3 | H39: 3 | I39: 3 | J39: 3 | K39: 3 | L39: 3 | M39: 3 | N39: 3 | O39: 3 | P39: 3 | Q39: 3 | R39: 3 | S39: 3 | T39: 3 | U39: 3 | V39: 3
A40: Proteiin, g | B40: 125 | C40: 125 | D40: 125 | E40: 125 | F40: 125 | G40: 125 | H40: 125 | I40: 125 | J40: 125 | K40: 125 | L40: 125 | M40: 125 | N40: 125 | O40: 125 | P40: 125 | Q40: 125 | R40: 125 | S40: 125 | T40: 125 | U40: 125 | V40: 125
A41: Vaba - reserveering

Sheet Optimaalne ratsioon
B2: Söödad | C2: Kogus, kg | D2: Hind, €/kg | E2: Maksumus, € | H2: Kogus, kg | J2: Maksumus, €
B3: Kõrreliste silo hea heintaimikuga kultuurrohumaalt LL 030-12-40 | C3: 33.56910732 | D3: 0.03 | E3: =C3*D3 -> 1.00707322 | H3: 33.56910732 | J3: =H3*D3 -> 1.00707322
B4: Põldheinasilo (50% ristikut) LL 103-12-40 | C4: 13.73689101 | D4: 0.03 | E4: =C4*D4 -> 0.4121067304 | H4: 13.73689101 | J4: =H4*D4 -> 0.4121067304
B5: Maisisilo PK 260-12-70 | C5: 0 | D5: 0.03 | E5: 0 | H5: 0 | J5: 0
B6: VII auk - maisisilo | C6: 3.440860044e-14 | D6: 0.03 | E6: 1.032258013e-15 | H6: 3.440860044e-14 | J6: 1.032258013e-15
B7: Hein kõrreliste kultuurrohumaa 030-15-60 | C7: 0 | D7: 0.078 | E7: 0 | H7: 0 | J7: 0
B8: Põldhein (50% ristikut) LL 103-15-40 | C8: 1 | D8: 0.078 | E8: 0.078 | H8: 1 | J8: 0.078
B9: Odrapõhk 255-16-0 | C9: 0 | D9: 0.015 | E9: 0 | H9: 0 | J9: 0
B10: Rapsikook 350-28 | C10: 4.670359897 | D10: 0.27 | E10: 1.260997172 | H10: 4.670359897 | J10: 1.260997172
B11: Sojašrott 310-29 | C11: 0 | D11: 0.46 | E11: 0 | H11: 0 | J11: 0
B12: Oder 255-20/21 | C12: 0 | D12: 0.159 | E12: 0 | H12: 0 | J12: 0
B13: Mais 260-20/21 | C13: 2.978569392 | D13: 0.2 | E13: 0.5957138783 | H13: 2.978569392 | J13: 0.5957138783
B14: Nisu 265-20/21 | C14: 7.993605777e-15 | D14: 0.177 | E14: 1.414868223e-15 | H14: 0 | J14: 0
B15: Mineraal2 | C15: 0.2 | D15: 0.05 | E15: 0.01 | H15: 0.2 | J15: 0.01
B16: Lubjakivi | C16: 0 | D16: 0.01 | E16: 0 | H16: 0 | J16: 0
B17: Panto | C17: 0 | D17: 0.95 | E17: 0 | H17: 0 | J17: 0
B18: Mineraal 3 | C18: 0 | D18: 0.72 | E18: 0 | H18: 0 | J18: 0
B19: Karbamiid | C19: 0 | D19: 0.295 | E19: 0 | H19: 0 | J19: 0
B20: Kaitstud rasv | C20: 0 | D20: 1.13 | E20: 0 | H20: 0 | J20: 0
C21: 2 | E21: 0 | H21: 2 | J21: 0
C22: 0 | E22: 0 | H22: 0 | J22: 0
C23: 0 | E23: 0 | H23: 0 | J23: 0
C24: 0 | E24: 0 | H24: 0 | J24: 0
B26: Kontrollnäitajad
B28: Ratsiooni maksumus, €/päev | C28: =Tabel1!Y5 -> 3.363891 | H28: =SUM(J3:J30) -> 3.363891
B29: Ratsiooni kogus, kg/päev | C29: =SUM(C3:C25) -> 58.15492762 | H29: =SUM(H3:H25) -> 58.15492762
B31: Kuivaine kogus, kg | C31: =Tabel1!Y6 -> 24.349993 | H31: =SUM(Tehniline!AH3:AH24) -> 24.349993
B32: Kuivaine osatähtsus ratsiooni kogumassist, % | C32: =C31/C29 -> 0.4187090243 | H32: =H31/H29 -> 0.4187090243
B33: Jõusööda osakaal ratsiooni kuivainest, % | C33: =(SUMPRODUCT(--(Tabel1!B3:'Tabel1'!W3="Teraviljad"),Tabel1!B2:W2,Tabel1!B6:W6)+SUMPRODUCT(--(Tabel1!B3:'Tabel1'!W3="Õlikoogid"),Tabel1!B2:W2,Tabel1!B6:W6)+SUMPRODUCT(--(Tabel1!B3:'Tabel1'!W3="Nisu"),Tabel1!B2:W2,Tabel1!B6:W6))/'Optimaalne ratsioon'!C31 -> 0.2778191182 | H33: =SUM(SUMIF(Tehniline!F3:F24,"Õlikoogid",Tehniline!AH3:AH24),SUMIF(Tehniline!F3:F24,"Teraviljad",Tehniline!AH3:AH24),SUMIF(Tehniline!F3:F24,"Nisu",Tehniline!AH3:AH24))/H31 -> 0.2778191182
B34: Silo osatähtsus kuivainest, % | C34: =(SUMPRODUCT(--(Tabel1!B3:'Tabel1'!W3="Silo"),Tabel1!B2:W2,Tabel1!B6:W6)+SUMPRODUCT(--(Tabel1!B3:'Tabel1'!W3="Maisisilo"),Tabel1!B2:W2,Tabel1!B6:W6))/'Optimaalne ratsioon'!C31 -> 0.6799632105 | H34: =SUM(SUMIF(Tehniline!F3:F24,"Silo",Tehniline!AH3:AH24),SUMIF(Tehniline!F3:F24,"Maisisilo",Tehniline!AH3:AH24))/H31 -> 0.6799632105
B35: Maisisilo osatähtsus kogu silokoguse kuivainest, % | C35: =(SUMPRODUCT(--(Tabel1!B3:'Tabel1'!W3="Maisisilo"),Tabel1!B2:W2,Tabel1!B6:W6))/(SUMPRODUCT(--(Tabel1!B3:'Tabel1'!W3="Silo"),Tabel1!B2:W2,Tabel1!B6:W6)+SUMPRODUCT(--(Tabel1!B3:'Tabel1'!W3="Maisisilo"),Tabel1!B2:W2,Tabel1!B6:W6)) -> 4.779809495e-16 | H35: =SUMIF(Tehniline!F3:F24,"Maisisilo",Tehniline!AH3:AH24) / (SUMIF(Tehniline!F3:F24,"Maisisilo",Tehniline!AH3:AH24) + SUMIF(Tehniline!F3:F24,"Silo",Tehniline!AH3:AH24)) -> 4.779809495e-16
B36: Nisu osatähtsus teravilja ja jahude kogusest, % | C36: =SUMPRODUCT(--(Tabel1!B3:'Tabel1'!W3="Nisu"),Tabel1!B2:W2,Tabel1!B6:W6)/(SUMPRODUCT(--(Tabel1!B3:'Tabel1'!W3="Nisu"),Tabel1!B2:W2,Tabel1!B6:W6)+SUMPRODUCT(--(Tabel1!B3:'Tabel1'!W3="Teraviljad"),Tabel1!B2:W2,Tabel1!B6:W6)) -> 2.683706413e-15 | H36: =SUMIF(Tehniline!F3:F24,"Nisu",Tehniline!AH3:AH24)/( SUMIF(Tehniline!F3:F24,"Nisu",Tehniline!AH3:AH24)+SUMIF(Tehniline!F3:F24,"Teraviljad",Tehniline!AH3:AH24)) -> 0
B38: Metaboliseeruv energia, MJ | C38: =Tabel1!Y7 -> 266.2021603 | H38: =SUM(Tehniline!AL3:AL24) -> 266.2021603
B39: Metaboliseeruv energia, MJ/kg KA | C39: =C38/C31 -> 10.93233005 | H39: =H38/H31 -> 10.93233005
B40: (Toor)proteiin, g KA | C40: =Tabel1!Y15/'Optimaalne ratsioon'!C31 -> 161.640293 | H40: =SUM(Tehniline!AR3:AR24)/H31 -> 161.640293
B41: Toorproteiini ja metaboliseeruva energia suhe | C41: =C40/C39 -> 14.78552991 | H41: =H40/H39 -> 14.78552991
B42: Metaboliseeruv proteiin, g/kg KA | C42: =Tabel1!Y9/'Optimaalne ratsioon'!C31 -> 96.99903954 | H42: =SUM(Tehniline!AM3:AM24)/H31 -> 96.99903954
B43: Metaboliseeruva proteiini ja metaboliseeruva energia suhe | C43: =C42/C39 -> 8.872677558 | H43: =H42/H39 -> 8.872677558
B44: VPB, g | C44: =Tabel1!Y10/'Optimaalne ratsioon'!C31 -> 10 | H44: =SUM(Tehniline!AN3:AN24)/'Optimaalne ratsioon'!H31 -> 10
B45: Ca:P suhe | C45: =Tabel1!Y13/Tabel1!Y14 -> 1.640082219 | H45: =SUM(Tehniline!AJ3:AJ24)/SUM(Tehniline!AK3:AK24) -> 1.640082219
B47: Tärklis ja suhkur ratsiooni kuivaines, g/kg | C47: =Tabel1!Y17/'Optimaalne ratsioon'!C31 -> 114.7520094 | H47: =SUM(Tehniline!AI3:AI24)/'Optimaalne ratsioon'!H31 -> 114.7520094
B48: Toorkiud, g/kg KA | C48: =Tabel1!Y8/'Optimaalne ratsioon'!C31 -> 225.3759251 | H48: =SUM(Tehniline!AO3:AO24)/'Optimaalne ratsioon'!H31 -> 225.3759251
B49: ADF, g/kg KA | C49: =Tabel1!Y18/'Optimaalne ratsioon'!C31 -> 304.5099558 | H49: =SUM(Tehniline!AP3:AP24)/'Optimaalne ratsioon'!H31 -> 304.5099558
B50: NDF, g/kg KA | C50: =Tabel1!Y19/'Optimaalne ratsioon'!C31 -> 457.5665862 | H50: =SUM(Tehniline!AQ3:AQ24)/'Optimaalne ratsioon'!H31 -> 457.5665862

Sheet Tabel1
B1: =B6*B2 -> 11.74918756 | C1: =C6*C2 -> 4.807911854 | D1: 0 | E1: 7.9139781e-15 | F1: =F6*F2 -> 0 | G1: 0.83 | H1: 0 | I1: 4.203323907 | J1: 0 | K1: 0 | L1: 2.561569677 | M1: 6.874500968e-15 | N1: 0.198 | O1: 0 | P1: 0 | Q1: 0 | R1: 0 | S1: 0 | T1: 0 | U1: 0 | V1: 0 | W1: 0 | Y1: 650 | AA1: NORM?
A2: valik | B2: 33.56910732 | C2: 13.73689101 | D2: 0 | E2: 3.440860044e-14 | F2: 0 | G2: 1 | H2: 0 | I2: 4.670359897 | J2: 0 | K2: 0 | L2: 2.978569392 | M2: 7.993605777e-15 | N2: 0.2 | O2: 0 | P2: 0 | Q2: 0 | R2: 0 | S2: 0 | T2: 2 | U2: 0 | V2: 0 | W2: 0
B3: Silo | C3: Silo | D3: Maisisilo | E3: Maisisilo | F3: Hein | G3: Hein | H3: Põhk | I3: Õlikoogid | J3: Õlikoogid | K3: Teraviljad | L3: Teraviljad | M3: Nisu | N3: Mineraalid | O3: Mineraalid | P3: Mineraalid | Q3: Mineraalid | R3: Mineraalid | S3: Rasv | T3: Lisasööt1
A4: Söödad | B4: Kõrreliste silo hea heintaimikuga kultuurrohumaalt LL 030-12-40 | C4: Põldheinasilo (50% ristikut) LL 103-12-40 | D4: Maisisilo PK 260-12-70 | E4: VII auk - maisisilo | F4: Hein kõrreliste kultuurrohumaa 030-15-60 | G4: Põldhein (50% ristikut) LL 103-15-40 | H4: Odrapõhk 255-16-0 | I4: Rapsikook 350-28 | J4: Sojašrott 310-29 | K4: Oder 255-20/21 | L4: Mais 260-20/21 | M4: Nisu 265-20/21 | N4: Mineraal2 | O4: Lubjakivi | P4: Panto | Q4: Mineraal 3 | R4: Karbamiid | S4: Kaitstud rasv
A5: Hind, €/kg | B5: 0.03 | C5: 0.03 | D5: 0.03 | E5: 0.03 | F5: 0.078 | G5: 0.078 | H5: 0.015 | I5: 0.27 | J5: 0.46 | K5: 0.159 | L5: 0.2 | M5: 0.177 | N5: 0.05 | O5: 0.01 | P5: 0.95 | Q5: 0.72 | R5: 0.295 | S5: 1.13 | Y5: =SUMPRODUCT(B5:W5,$B$2:$W$2) -> 3.363891 | AA5: 0
A6: KA,% | B6: 0.35 | C6: 0.35 | D6: 0.22 | E6: 0.23 | F6: 0.83 | G6: 0.83 | H6: 0.83 | I6: 0.9 | J6: 0.88 | K6: 0.86 | L6: 0.86 | M6: 0.86 | N6: 0.99 | O6: 0.99 | P6: 0.99 | Q6: 0.99 | R6: 0.99 | S6: 0.99 | Y6: =SUMPRODUCT(B6:W6,$B$2:$W$2) -> 24.349993 | Z6: = | AA6: ='Lehm ja ratsiooni tingimused'!D10 -> 13.55980379
A7: ME, MJ/kg KA | B7: 3.535 | C7: 3.43 | D7: 2.288 | E7: 2.53 | F7: 6.972 | G7: 7.719 | H7: 5.727 | I7: 12.06 | J7: 12.408 | K7: 11.18 | L7: 12.212 | M7: 11.868 | N7: 0 | O7: 0 | P7: 0 | Q7: 0 | R7: 0 | S7: 31.68 | Y7: =SUMPRODUCT(B7:W7,$B$2:$W$2) -> 266.2021603 | Z7: >= | AA7: =$AA$6*AB7 -> 147.8267653 | AB7: 10.9018366 | AD7: =Y7/$Y$6 -> 10.93233005
A8: Toorkiud, g/kg KA | B8: 98 | C8: 98 | D8: 61.6 | E8: 51.29 | F8: 278.05 | G8: 260.62 | H8: 348.6 | I8: 110.7 | J8: 69.52 | K8: 51.6 | L8: 24.94 | M8: 21.5 | N8: 0 | O8: 0 | P8: 0 | Q8: 0 | R8: 0 | S8: 0 | Y8: =SUMPRODUCT(B8:W8,$B$2:$W$2) -> 5487.902198 | Z8: >= | AA8: =$AA$6*AB8 -> 1822.437629 | AB8: 134.4 | AD8: =Y8/$Y$6 -> 225.3759251
A9: MP, g/kg KA | B9: 27.65 | C9: 27.65 | D9: 16.72 | E9: 18.17 | F9: 57.27 | G9: 67.23 | H9: 46.48 | I9: 144.9 | J9: 172.48 | K9: 88.58 | L9: 104.06 | M9: 91.16 | N9: 0 | O9: 0 | P9: 0 | Q9: 0 | R9: 0 | S9: 0 | Y9: 2361.925934 | Z9: >= | AA9: =$AA$6*AB9 -> 1177.276729 | AB9: 86.82107405 | AD9: 96.99903954
A10: VPB, g/kg KA | B10: -2.1 | C10: 0 | D10: -7.48 | E10: -9.89 | F10: -32.37 | G10: -14.11 | H10: -39.84 | I10: 125.1 | J10: 176 | K10: -37.84 | L10: -86 | M10: -24.08 | N10: 0 | O10: 0 | P10: 0 | Q10: 0 | R10: 2598.75 | S10: 0 | Y10: 243.49993 | Z10: >= | AA10: 0 | AB10: 0 | AD10: 10
A11: VPB, g, max | B11: -2.1 | C11: 0 | D11: -7.48 | E11: -9.89 | F11: -32.37 | G11: -14.11 | H11: -39.84 | I11: 125.1 | J11: 176 | K11: -37.84 | L11: -86 | M11: -24.08 | N11: 0 | O11: 0 | P11: 0 | Q11: 0 | R11: 2598.75 | S11: 0 | Y11: 243.49993 | Z11: <= | AA11: 135.5980379 | AB11: 10 | AD11: 10
A12: Ca, g/kg KA | B12: 2.1 | C12: 3.465 | D12: 0.88 | E12: 0.897 | F12: 4.399 | G12: 7.636 | H12: 3.237 | I12: 7.47 | J12: 2.992 | K12: 0.688 | L12: 0.344 | M12: 0.516 | N12: 148.5 | O12: 356.4 | P12: 183.15 | Q12: 173.25 | R12: 0 | S12: 0 | Y12: 191.341669 | Z12: >= | AA12: 99.41639574 | AB12: 7.331698694 | AD12: 7.857976346
A13: Ca, g, max | B13: 2.1 | C13: 3.465 | D13: 0.88 | E13: 0.897 | F13: 4.399 | G13: 7.636 | H13: 3.237 | I13: 7.47 | J13: 2.992 | K13: 0.688 | L13: 0.344 | M13: 0.516 | N13: 148.5 | O13: 356.4 | P13: 183.15 | Q13: 173.25 | R13: 0 | S13: 0 | Y13: 191.341669 | Z13: <= | AA13: 119.2996749 | AB13: 8.798038433 | AD13: 7.857976346
A14: P, g/kg KA | B14: 1.05 | C14: 0.91 | D14: 0.506 | E14: 0.483 | F14: 1.909 | G14: 1.992 | H14: 0.83 | I14: 9.45 | J14: 6.424 | K14: 3.526 | L14: 2.666 | M14: 3.268 | N14: 74.25 | O14: 0 | P14: 39.6 | Q14: 74.25 | R14: 0 | S14: 0 | Y14: 116.6659005 | Z14: >= | AA14: 64.96785113 | AB14: 4.791208791 | AD14: 4.791208791
A15: (Toor) proteiin, g/kg KA | B15: 44.8 | C15: 47.25 | D15: 20.9 | E15: 20.93 | F15: 66.4 | G15: 102.09 | H15: 39.01 | I15: 307.8 | J15: 440 | K15: 107.5 | L15: 81.7 | M15: 125.56 | N15: 0 | O15: 0 | P15: 0 | Q15: 0 | R15: 2598.75 | S15: 0 | Y15: 3935.940004 | Z15: >= | AA15: 2191.810658 | AB15: 161.640293 | AD15: 161.640293
A16: Vaba - reserveering | B16: 0 | C16: 0 | D16: 0 | E16: 0 | F16: 0 | G16: 0 | H16: 0 | I16: 0 | J16: 0 | K16: 0 | L16: 0 | M16: 0 | N16: 0 | O16: 0 | P16: 0 | Q16: 0 | R16: 0 | S16: 0 | Y16: 0 | Z16: >= | AA16: 0
A17: Tärklis+suhkur, g/kg KA | B17: 10.5 | C17: 10.5 | D17: 44 | E17: 46 | F17: 0 | G17: 0 | H17: 0 | I17: 108 | J17: 228.8 | K17: 516 | L17: 602 | M17: 559 | N17: 0 | O17: 0 | P17: 0 | Q17: 0 | R17: 0 | S17: 0 | Y17: 2794.210625 | Z17: >= | AA17: 0
A18: ADF, g/kg KA | B18: 129.5 | C18: 123.9 | D18: 78.32 | E18: 81.88 | F18: 351.09 | G18: 318.72 | H18: 414.17 | I18: 208.8 | J18: 82.72 | K18: 67.94 | L18: 24.08 | M18: 0 | N18: 0 | O18: 0 | P18: 0 | Q18: 0 | R18: 0 | S18: 0 | Y18: 7414.815292 | Z18: <= | AA18: 0
A19: NDF, g/kg KA | B19: 196 | C19: 175.7 | D19: 126.5 | E19: 132.25 | F19: 553.61 | G19: 472.27 | H19: 654.04 | I19: 299.7 | J19: 149.6 | K19: 190.06 | L19: 92.88 | M19: 0 | N19: 0 | O19: 0 | P19: 0 | Q19: 0 | R19: 0 | S19: 0 | Y19: 11141.74317 | Z19: <= | AA19: 0
A20: silo | B20: 1 | C20: 1 | D20: 1 | E20: 1 | Y20: 47.30599833 | Z20: <= | AA20: ='Lehm ja ratsiooni tingimused'!D18 -> 50 | AC20: D17
A21: silo max% | B21: -1 | C21: -1 | D21: 0 | E21: 0 | Y21: -47.30599833 | Z21: <= | AA21: 0
A22: hein | F22: 1 | G22: 1 | Y22: 1 | Z22: <= | AA22: ='Lehm ja ratsiooni tingimused'!D24 -> 1 | AC22: D18
A23: põhk | H23: 1 | Y23: 0 | Z23: <= | AA23: ='Lehm ja ratsiooni tingimused'!D25 -> 0.5 | AC23: D19
A24: jahud | I24: 1 | J24: 1 | K24: 1 | L24: 1 | M24: 1 | Y24: 7.648929288 | Z24: <= | AA24: ='Lehm ja ratsiooni tingimused'!D31 -> 15 | AC24: D20
A25: jahud% | K25: 0.5 | L25: -0.5 | M25: -0.5 | Y25: -1.489284696 | Z25: <= | AA25: 0
A26: nisu max | K26: -0.5 | L26: -0.5 | M26: 0.5 | Y26: -1.489284696 | Z26: <= | AA26: 0
A27: õlikoogid | I27: 1 | Y27: 4.670359897 | Z27: <= | AA27: ='Lehm ja ratsiooni tingimused'!D28 -> 5 | AC27: D21
A28: panto | P28: 1 | Y28: 0 | Z28: <= | AA28: 0
A29: mineraal | N29: 1 | Y29: 0.2 | Z29: <= | AA29: ='Lehm ja ratsiooni tingimused'!D39 -> 0.2 | AC29: D22
A30: lubjakivi | O30: 1 | Y30: 0 | Z30: <= | AA30: ='Lehm ja ratsiooni tingimused'!D40 -> 0.25 | AC30: D23
A31: maisisilo min | B31: 0 | C31: 0 | D31: 1 | E31: 1 | Y31: 3.440860044e-14 | Z31: >= | AA31: 0
A32: Kaitstud rasv max | S32: 1 | Y32: 0 | Z32: <= | AA32: ='Lehm ja ratsiooni tingimused'!D36 -> 0.2 | AC32: D27
A33: Lisasööt1 | T33: 1 | Y33: 2 | Z33: >= | AA33: ='Lehm ja ratsiooni tingimused'!D43 -> 2 | AC33: D28
A34: Lisasööt2 | Y34: 0 | Z34: >= | AA34: ='Lehm ja ratsiooni tingimused'!D44 -> 0 | AC34: D29
A35: rohusilo max % | B35: 1 | C35: 0 | Y35: =SUMPRODUCT(B35:W35,$B$2:$W$2) -> 33.56910732 | Z35: >= | AA35: 0
A36: rohusilo max % | B36: 0 | C36: 0 | Y36: =SUMPRODUCT(B36:W36,$B$2:$W$2) -> 0 | Z36: >= | AA36: 0
A37: rohusilo max % | B37: 0 | C37: 1 | Y37: 13.73689101 | Z37: >= | AA37: 0
A38: rohusilo max % | B38: 0 | C38: 0 | Y38: 0 | Z38: >= | AA38: 0
A39: rohusilo max % | B39: 0 | C39: 0 | Y39: 0 | Z39: >= | AA39: 0
A40: rohusilo max % | B40: 0 | C40: 0 | Y40: 0 | Z40: >= | AA40: 0
A41: rohusilo max % | B41: 0 | C41: 0 | Y41: 0 | Z41: >= | AA41: 0
A42: rohusilo max % | B42: 0 | C42: 0 | Y42: 0 | Z42: >= | AA42: 0
A43: rohusilo max % | B43: 0 | C43: 0 | Y43: 0 | Z43: >= | AA43: 0
A44: rohusilo max % | B44: 0 | C44: 0 | Y44: 0 | Z44: >= | AA44: 0
A45: rohusilo max % | B45: 0 | C45: 0 | Y45: 0 | Z45: >= | AA45: 0
A46: rohusilo max % | B46: 0 | C46: 0 | Y46: 0 | Z46: >= | AA46: 0
A47: rohusilo max % | B47: 0 | C47: 0 | Y47: 0 | Z47: >= | AA47: 0
A48: Vesi | Y48: 0 | AA48: 0
A49: teravilja max% | K49: 1 | L49: 0 | M49: 0 | Y49: 0 | Z49: >= | AA49: 0
A50: teravilja max% | K50: 0 | L50: 1 | M50: 0 | Y50: 2.978569392 | Z50: >= | AA50: 0
A51: teravilja max% | K51: 0 | L51: 0 | M51: 0 | Y51: 0 | Z51: >= | AA51: 0
A52: teravilja max% | K52: 0 | L52: 0 | M52: 0 | Y52: 0 | Z52: >= | AA52: 0
A53: teravilja max% | K53: 0 | L53: 0 | M53: 0 | Y53: 0 | Z53: >= | AA53: 0
A54: teravilja max% | K54: 0 | L54: 0 | M54: 0 | Y54: 0 | Z54: >= | AA54: 0
A55: teravilja max% | K55: 0 | L55: 0 | M55: 0 | Y55: 0 | Z55: >= | AA55: 0
A56: teravilja max% | K56: 0 | L56: 0 | M56: 0 | Y56: 0 | Z56: >= | AA56: 0
A57: teravilja max% | K57: 0 | L57: 0 | M57: 0 | Y57: 0 | Z57: >= | AA57: 0
A58: teravilja max% | K58: 0 | L58: 0 | M58: 0 | Y58: 0 | Z58: >= | AA58: 0
A59: teravilja max% | K59: 0 | L59: 0 | M59: 0 | Y59: 0 | Z59: >= | AA59: 0
A60: teravilja max% | K60: 0 | L60: 0 | M60: 0 | Y60: 0 | Z60: >= | AA60: 0
A61: teravilja max% | K61: 0 | L61: 0 | M61: 0 | Y61: 0 | Z61: >= | AA61: 0
A62: teravilja max% | K62: 0 | L62: 0 | M62: 0 | Y62: 0 | Z62: >= | AA62: 0
A63: teravilja max% | K63: 0 | L63: 0 | M63: 0 | Y63: 0 | Z63: >= | AA63: 0
A64: teravilja max% | K64: 0 | L64: 0 | M64: 0 | Y64: 0 | Z64: >= | AA64: 0
A65: teravilja max% | K65: 0 | L65: 0 | M65: 0 | Y65: 0 | Z65: >= | AA65: 0
A66: nisu max% | K66: 0 | L66: 0 | M66: 0 | Y66: 0 | Z66: >= | AA66: 0
A67: nisu max% | K67: 0 | L67: 0 | M67: 1 | Y67: 7.993605777e-15 | Z67: >= | AA67: 0
A68: nisu max% | K68: 0 | L68: 0 | M68: 0 | Y68: 0 | Z68: >= | AA68: 0
A69: nisu max% | K69: 0 | L69: 0 | M69: 0 | Y69: 0 | Z69: >= | AA69: 0
A70: nisu max% | K70: 0 | L70: 0 | M70: 0 | Y70: 0 | Z70: >= | AA70: 0
A71: nisu max% | K71: 0 | L71: 0 | M71: 0 | Y71: 0 | Z71: >= | AA71: 0
A72: nisu max% | K72: 0 | L72: 0 | M72: 0 | Y72: 0 | Z72: >= | AA72: 0
A73: nisu max% | K73: 0 | L73: 0 | M73: 0 | Y73: 0 | Z73: >= | AA73: 0

Sheet Tehniline (hidden)
G2: Söödad | H2: Hind, €/kg | I2: KA,% | J2: ME, MJ/kg KA | K2: Toorkiud, g/kg KA | L2: MP, g/kg KA | M2: VPB, g/kg KA | N2: VPB, g, max | O2: Ca, g/kg KA | P2: Ca, g, max | Q2: P, g/kg KA | R2: (Toor) proteiin, g/kg KA | S2: Vaba - reserveering | T2: Tärklis+suhkur, g/kg KA | U2: ADF, g/kg KA | V2: NDF, g/kg KA | W2: silo | X2: silo max% | Y2: hein | Z2: põhk | AA2: jahud | AB2: jahud% | AC2: nisu max | AD2: õlikoogid | AE2: panto | AF2: mineraal | AH2: KA | AI2: Tärklis+suhkur | AJ2: Ca,Max | AK2: P | AL2: ME, MJ/kg KA | AM2: MP, g/kg KA | AN2: VPB, g | AO2: Toorkiud, g/kg KA | AP2: ADF, g/kg KA | AQ2: NDF, g/kg KA | AR2: Proteiin,g KA
A3: 45 | B3: 0.35 | D3: - 0…30 lüpsipäev | F3: Silo | G3: Kõrreliste silo hea heintaimikuga kultuurrohumaalt LL 030-12-40 | H3: 0.03 | I3: 0.35 | J3: 10.1 | K3: 280 | L3: 79 | M3: -6 | N3: -6 | O3: 6 | P3: 6 | Q3: 3 | R3: 128 | T3: 30 | U3: 370 | V3: 560 | W3: 1 | X3: -1 | AH3: =IFERROR(SUMPRODUCT(I3,'Optimaalne ratsioon'!H3),0) -> 11.74918756 | AI3: =IFERROR(SUMPRODUCT(T3,AH3),0) -> 352.4756269 | AJ3: =IFERROR(SUMPRODUCT(P3,AH3),0) -> 70.49512537 | AK3: =IFERROR(SUMPRODUCT(Q3,AH3),0) -> 35.24756269 | AL3: =IFERROR(SUMPRODUCT(J3,AH3),0) -> 118.6667944 | AM3: =IFERROR(SUMPRODUCT(L3,AH3),0) -> 928.1858174 | AN3: =IFERROR(SUMPRODUCT(N3,AH3),0) -> -70.49512537 | AO3: =IFERROR(SUMPRODUCT(K3,AH3),0) -> 3289.772517 | AP3: =IFERROR(SUMPRODUCT(U3,AH3),0) -> 4347.199398 | AQ3: =IFERROR(SUMPRODUCT(V3,AH3),0) -> 6579.545035 | AR3: =IFERROR(SUMPRODUCT(R3,AH3),0) -> 1503.896008
A4: 1 | B4: 0.35 | D4: - Laktatsiooni I pool (31…150 lüpsipäev) | F4: Silo | G4: Põldheinasilo (50% ristikut) LL 103-12-40 | H4: 0.03 | I4: 0.35 | J4: 9.8 | K4: 280 | L4: 79 | M4: 0 | N4: 0 | O4: 9.9 | P4: 9.9 | Q4: 2.6 | R4: 135 | T4: 30 | U4: 354 | V4: 502 | W4: 1 | X4: -1 | AH4: =IFERROR(SUMPRODUCT(I4,'Optimaalne ratsioon'!H4),0) -> 4.807911854 | AI4: =IFERROR(SUMPRODUCT(T4,AH4),0) -> 144.2373556 | AJ4: =IFERROR(SUMPRODUCT(P4,AH4),0) -> 47.59832736 | AK4: =IFERROR(SUMPRODUCT(Q4,AH4),0) -> 12.50057082 | AL4: =IFERROR(SUMPRODUCT(J4,AH4),0) -> 47.11753617 | AM4: =IFERROR(SUMPRODUCT(L4,AH4),0) -> 379.8250365 | AN4: =IFERROR(SUMPRODUCT(N4,AH4),0) -> 0 | AO4: =IFERROR(SUMPRODUCT(K4,AH4),0) -> 1346.215319 | AP4: =IFERROR(SUMPRODUCT(U4,AH4),0) -> 1702.000796 | AQ4: =IFERROR(SUMPRODUCT(V4,AH4),0) -> 2413.571751 | AR4: =IFERROR(SUMPRODUCT(R4,AH4),0) -> 649.0681004
A5: 0.5 | B5: 0.35 | D5: - Laktatsiooni II pool (151… lüpsipäev) | F5: Maisisilo | G5: Maisisilo PK 260-12-70 | H5: 0.03 | I5: 0.22 | J5: 10.4 | K5: 280 | L5: 76 | M5: -34 | N5: -34 | O5: 4 | P5: 4 | Q5: 2.3 | R5: 95 | T5: 200 | U5: 356 | V5: 575 | W5: 1 | X5: 0 | AH5: =IFERROR(SUMPRODUCT(I5,'Optimaalne ratsioon'!H5),0) -> 0 | AI5: 0 | AJ5: 0 | AK5: 0 | AL5: 0 | AM5: 0 | AN5: 0 | AO5: 0 | AP5: 0 | AQ5: 0 | AR5: 0
A6: 11 | B6: 0.35 | D6: Kinnisperiood | F6: Maisisilo | G6: VII auk - maisisilo | H6: 0.03 | I6: 0.23 | J6: 11 | K6: 223 | L6: 79 | M6: -43 | N6: -43 | O6: 3.9 | P6: 3.9 | Q6: 2.1 | R6: 91 | T6: 200 | U6: 356 | V6: 575 | W6: 1 | X6: 0 | AH6: =IFERROR(SUMPRODUCT(I6,'Optimaalne ratsioon'!H6),0) -> 7.9139781e-15 | AI6: 1.58279562e-12 | AJ6: 3.086451459e-14 | AK6: 1.661935401e-14 | AL6: 8.70537591e-14 | AM6: 6.252042699e-13 | AN6: -3.403010583e-13 | AO6: 1.764817116e-12 | AP6: 2.817376204e-12 | AQ6: 4.550537408e-12 | AR6: 7.201720071e-13
A7: 5 | B7: 0.35 | F7: Hein | G7: Hein kõrreliste kultuurrohumaa 030-15-60 | H7: 0.078 | I7: 0.83 | J7: 8.4 | K7: 335 | L7: 69 | M7: -39 | N7: -39 | O7: 5.3 | P7: 5.3 | Q7: 2.3 | R7: 80 | U7: 423 | V7: 667 | Y7: 1 | AH7: =IFERROR(SUMPRODUCT(I7,'Optimaalne ratsioon'!H7),0) -> 0 | AI7: 0 | AJ7: 0 | AK7: 0 | AL7: 0 | AM7: 0 | AN7: 0 | AO7: 0 | AP7: 0 | AQ7: 0 | AR7: 0
A8: 0.2 | B8: 0.3 | F8: Hein | G8: Põldhein (50% ristikut) LL 103-15-40 | H8: 0.078 | I8: 0.83 | J8: 9.3 | K8: 314 | L8: 81 | M8: -17 | N8: -17 | O8: 9.2 | P8: 9.2 | Q8: 2.4 | R8: 123 | U8: 384 | V8: 569 | Y8: 1 | AH8: =IFERROR(SUMPRODUCT(I8,'Optimaalne ratsioon'!H8),0) -> 0.83 | AI8: 0 | AJ8: 7.636 | AK8: 1.992 | AL8: 7.719 | AM8: 67.23 | AN8: -14.11 | AO8: 260.62 | AP8: 318.72 | AQ8: 472.27 | AR8: 102.09
A9: 0.25 | B9: 0.22 | F9: Põhk | G9: Odrapõhk 255-16-0 | H9: 0.015 | I9: 0.83 | J9: 6.9 | K9: 420 | L9: 56 | M9: -48 | N9: -48 | O9: 3.9 | P9: 3.9 | Q9: 1 | R9: 47 | U9: 499 | V9: 788 | Z9: 1 | AH9: =IFERROR(SUMPRODUCT(I9,'Optimaalne ratsioon'!H9),0) -> 0 | AI9: 0 | AJ9: 0 | AK9: 0 | AL9: 0 | AM9: 0 | AN9: 0 | AO9: 0 | AP9: 0 | AQ9: 0 | AR9: 0
A10: 0.2 | B10: 0.83 | D10: =0.83*(5.640313+0.58204*'Lehm ja ratsiooni tingimused'!D8-0.00236*POWER('Lehm ja ratsiooni tingimused'!D8,2)) -> 13.55980379 | F10: Õlikoogid | G10: Rapsikook 350-28 | H10: 0.27 | I10: 0.9 | J10: 13.4 | K10: 123 | L10: 161 | M10: 139 | N10: 139 | O10: 8.3 | P10: 8.3 | Q10: 10.5 | R10: 342 | T10: 120 | U10: 232 | V10: 333 | AA10: 1 | AD10: 1 | AH10: =IFERROR(SUMPRODUCT(I10,'Optimaalne ratsioon'!H10),0) -> 4.203323907 | AI10: 504.3988688 | AJ10: 34.88758843 | AK10: 44.13490102 | AL10: 56.32454035 | AM10: 676.735149 | AN10: 584.2620231 | AO10: 517.0088405 | AP10: 975.1711464 | AQ10: 1399.706861 | AR10: 1437.536776
A11: 0.25 | B11: 0.83 | F11: Õlikoogid | G11: Sojašrott 310-29 | H11: 0.46 | I11: 0.88 | J11: 14.1 | K11: 79 | L11: 196 | M11: 200 | N11: 200 | O11: 3.4 | P11: 3.4 | Q11: 7.3 | R11: 500 | T11: 260 | U11: 94 | V11: 170 | AA11: 1 | AH11: =IFERROR(SUMPRODUCT(I11,'Optimaalne ratsioon'!H11),0) -> 0 | AI11: 0 | AJ11: 0 | AK11: 0 | AL11: 0 | AM11: 0 | AN11: 0 | AO11: 0 | AP11: 0 | AQ11: 0 | AR11: 0
A12: 0.5 | B12: 0.83 | F12: Teraviljad | G12: Oder 255-20/21 | H12: 0.159 | I12: 0.86 | J12: 13 | K12: 60 | L12: 103 | M12: -44 | N12: -44 | O12: 0.8 | P12: 0.8 | Q12: 4.1 | R12: 125 | T12: 600 | U12: 79 | V12: 221 | AA12: 1 | AB12: 0.5 | AC12: -0.5 | AH12: =IFERROR(SUMPRODUCT(I12,'Optimaalne ratsioon'!H12),0) -> 0 | AI12: 0 | AJ12: 0 | AK12: 0 | AL12: 0 | AM12: 0 | AN12: 0 | AO12: 0 | AP12: 0 | AQ12: 0 | AR12: 0
B13: 0.83 | F13: Teraviljad | G13: Mais 260-20/21 | H13: 0.2 | I13: 0.86 | J13: 14.2 | K13: 29 | L13: 121 | M13: -100 | N13: -100 | O13: 0.4 | P13: 0.4 | Q13: 3.1 | R13: 95 | T13: 700 | U13: 28 | V13: 108 | AA13: 1 | AB13: -0.5 | AC13: -0.5 | AH13: =IFERROR(SUMPRODUCT(I13,'Optimaalne ratsioon'!H13),0) -> 2.561569677 | AI13: 1793.098774 | AJ13: 1.024627871 | AK13: 7.940865998 | AL13: 36.37428941 | AM13: 309.9499309 | AN13: -256.1569677 | AO13: 74.28552063 | AP13: 71.72395095 | AQ13: 276.6495251 | AR13: 243.3491193
B14: 0.82 | F14: Nisu | G14: Nisu 265-20/21 | H14: 0.177 | I14: 0.86 | J14: 13.8 | K14: 25 | L14: 106 | M14: -28 | N14: -28 | O14: 0.6 | P14: 0.6 | Q14: 3.8 | R14: 146 | T14: 650 | AA14: 1 | AB14: -0.5 | AC14: 0.5 | AH14: =IFERROR(SUMPRODUCT(I14,'Optimaalne ratsioon'!H14),0) -> 0 | AI14: 0 | AJ14: 0 | AK14: 0 | AL14: 0 | AM14: 0 | AN14: 0 | AO14: 0 | AP14: 0 | AQ14: 0 | AR14: 0
B15: 0.9 | F15: Mineraalid | G15: Mineraal2 | H15: 0.05 | I15: 0.99 | N15: 0 | O15: 150 | P15: 150 | Q15: 75 | AF15: 1 | AH15: =IFERROR(SUMPRODUCT(I15,'Optimaalne ratsioon'!H15),0) -> 0.198 | AI15: 0 | AJ15: 29.7 | AK15: 14.85 | AL15: 0 | AM15: 0 | AN15: 0 | AO15: 0 | AP15: 0 | AQ15: 0 | AR15: 0
B16: 0.9 | F16: Mineraalid | G16: Lubjakivi | H16: 0.01 | I16: 0.99 | N16: 0 | O16: 360 | P16: 360 | AH16: =IFERROR(SUMPRODUCT(I16,'Optimaalne ratsioon'!H16),0) -> 0 | AI16: 0 | AJ16: 0 | AK16: 0 | AL16: 0 | AM16: 0 | AN16: 0 | AO16: 0 | AP16: 0 | AQ16: 0 | AR16: 0
B17: 0.86 | F17: Mineraalid | G17: Panto | H17: 0.95 | I17: 0.99 | N17: 0 | O17: 185 | P17: 185 | Q17: 40 | AE17: 1 | AH17: =IFERROR(SUMPRODUCT(I17,'Optimaalne ratsioon'!H17),0) -> 0 | AI17: 0 | AJ17: 0 | AK17: 0 | AL17: 0 | AM17: 0 | AN17: 0 | AO17: 0 | AP17: 0 | AQ17: 0 | AR17: 0
B18: 0.86 | F18: Mineraalid | G18: Mineraal 3 | H18: 0.72 | I18: 0.99 | N18: 0 | O18: 175 | P18: 175 | Q18: 75 | AH18: =IFERROR(SUMPRODUCT(I18,'Optimaalne ratsioon'!H18),0) -> 0 | AI18: 0 | AJ18: 0 | AK18: 0 | AL18: 0 | AM18: 0 | AN18: 0 | AO18: 0 | AP18: 0 | AQ18: 0 | AR18: 0
B19: 0.86 | F19: Mineraalid | G19: Karbamiid | H19: 0.295 | I19: 0.99 | M19: 2625 | N19: 2625 | P19: 0 | R19: 2625 | AH19: =IFERROR(SUMPRODUCT(I19,'Optimaalne ratsioon'!H19),0) -> 0 | AI19: 0 | AJ19: 0 | AK19: 0 | AL19: 0 | AM19: 0 | AN19: 0 | AO19: 0 | AP19: 0 | AQ19: 0 | AR19: 0
B20: 0.65 | F20: Rasv | G20: Kaitstud rasv | H20: 1.13 | I20: 0.99 | J20: 32 | N20: 0 | P20: 0 | AH20: =IFERROR(SUMPRODUCT(I20,'Optimaalne ratsioon'!H20),0) -> 0 | AI20: 0 | AJ20: 0 | AK20: 0 | AL20: 0 | AM20: 0 | AN20: 0 | AO20: 0 | AP20: 0 | AQ20: 0 | AR20: 0
B21: 0.99 | F21: Lisasööt1 | AH21: =IFERROR(SUMPRODUCT(I21,'Optimaalne ratsioon'!H21),0) -> 0 | AI21: 0 | AJ21: 0 | AK21: 0 | AL21: 0 | AM21: 0 | AN21: 0 | AO21: 0 | AP21: 0 | AQ21: 0 | AR21: 0
B22: 0.99 | AH22: =IFERROR(SUMPRODUCT(I22,'Optimaalne ratsioon'!H22),0) -> 0 | AI22: 0 | AJ22: 0 | AK22: 0 | AL22: 0 | AM22: 0 | AN22: 0 | AO22: 0 | AP22: 0 | AQ22: 0 | AR22: 0
B23: 0.99 | AH23: =IFERROR(SUMPRODUCT(I23,'Optimaalne ratsioon'!H23),0) -> 0 | AI23: 0 | AJ23: 0 | AK23: 0 | AL23: 0 | AM23: 0 | AN23: 0 | AO23: 0 | AP23: 0 | AQ23: 0 | AR23: 0
B24: 0.99 | AH24: =IFERROR(SUMPRODUCT(I24,'Optimaalne ratsioon'!H24),0) -> 0 | AI24: 0 | AJ24: 0 | AK24: 0 | AL24: 0 | AM24: 0 | AN24: 0 | AO24: 0 | AP24: 0 | AQ24: 0 | AR24: 0
A28: silode tabeli jaoks | B28: teraviljad + nisu
A32: TRUE | B32: TRUE | C32: 50
A33: FALSE | B33: TRUE | C33: 0
A34: TRUE | B34: FALSE | C34: 1
A35: FALSE | B35: FALSE | C35: 0
A36: FALSE | B36: FALSE
A37: FALSE | B37: FALSE
A38: FALSE | B38: FALSE | C38: 1
A39: FALSE | B39: FALSE | C39: 0.5
A40: FALSE | B40: FALSE
A41: FALSE | B41: FALSE
A42: FALSE | B42: FALSE | C42: 5
A43: FALSE | B43: FALSE
A44: FALSE | B44: FALSE
B45: FALSE | C45: 15
B46: FALSE | C46: 0.5
B47: FALSE | C47: 0
B48: FALSE
B49: FALSE
B50: TRUE | C50: 0.2
B51: FALSE
B52: FALSE
B53: FALSE | C53: 0.2
B54: FALSE | C54: 0.25
B55: FALSE
B56: FALSE
C57: 0
C58: 0
